Cogmind - Beta 10 X2 @@@ ROGUE MODE // 2020.06.26 @ 18:59:52 Player: Nikolayag Result: Destroyed by P-80 Master with Gamma Rifle Performance ------------- Evolutions (9) 4500 Regions Visited (34) 6800 Robots Destroyed (424) 2120 Value Destroyed (15830) 15830 Prototype IDs (54) 1080 Alien Tech Used (4) 800 Bonus (39979) 39979 TOTAL SCORE: 71109 Bonus ------- Triggered High Security 500 High Alert Combat Kills 3429 Follower Combat Kills 10668 Entered Garrisons 200 Network Hubs Disabled 200 Met Imprinter 300 Triggered Deep Caves Wall 1000 Exposed GOLEM Chamber 15000 Met Zhirov 300 Built Enhanced Grunts 300 A7 Reached Mainframe 300 Met R17 at Cetus 500 Read Decrypted Archives 300 Found Hidden Lab 3000 Used Core Reset Matrix 3000 Met R17 at Research 2000 Scanned by Researcher 500 Destroyed MAIN.C Guards 500 Met MAIN.C 5000 Destroyed MAIN.C Shell 5000 Friendly Fire -12018 Cogmind --------- Core Integrity 0/1600 Matter 300/300 Energy 100/100 System Corruption 46% Temperature Cool (0) Movement Core (50) Location -1/Command Parts ------- > --- POWER (2) -------- (None) > --- PROPULSION (2) --- (None) > --- UTILITY (20) ----- (None) > --- WEAPON (2) ------- (None) > --- INVENTORY (4) ---- Transdimensional Reconstructor KE Penetrator Peak State ------------ > --- POWER ------------ Zero-point Reactor Zero-point Reactor > --- PROPULSION ------- Compact Wheel Compact Wheel > --- UTILITY ---------- Advanced Heat Sink Experimental Heat Sink High-capacity Storage Unit High-capacity Storage Unit High-capacity Storage Unit High-capacity Storage Unit High-capacity Storage Unit Zionite Biocell Advanced Visual Processing Unit Advanced Signal Interpreter Advanced Target Analyzer Improved Armor Integrity Analyzer Quantum Capacitor Heavy Regenerative Plating SHELL Armor AEGIS Remote Shield > --- WEAPON ----------- Warp Cannon Plasma Lance > --- INVENTORY -------- Compact Wheel High-capacity Storage Unit Experimental Energy Well Experimental Energy Well Zionite Biocell Zionite Biocell Long-range Sensor Array Experimental ECM Suite Medium Regenerative Plating Heavy Regenerative Plating Improved Focal Shield Improved Force Field Improved Remote Force Field GOLEM Unit GOLEM Unit GOLEM Unit GOLEM Unit GOLEM Unit GOLEM Unit GOLEM Unit Dimensional Node Initializer Transdimensional Reconstructor Hypervelocity EM Gauss Rifle Advanced Variable Charge Gun HERF Cannon Cooled Nova Cannon KE Penetrator KE Penetrator Railgun Improved KE Penetrator Heavy Shock Bomb Launcher Advanced Micro-nuke Launcher Plasma Cutter [Rating: 181] Favorites ----------- Power Reinforced Fission Core Engine Reinforced Ion Engine Power Core Reinforced Fission Core Reactor Cooled Antimatter Reactor Propulsion Compact Wheel Treads Light Treads Leg Assembled Alloy Leg Wheel Compact Wheel Utility High-capacity Storage Unit Device Long-range Sensor Array Storage High-capacity Storage Unit Processor Advanced Signal Interpreter Hackware System Shield Protection Medium Regenerative Plating Weapon Makeshift Sword Energy Gun Shock Rifle Energy Cannon Beam Cannon Ballistic Gun Improved KE Penetrator Ballistic Cannon Assault Cannon Launcher Proton Missile Launcher Special Weapon Plasma Cutter Slashing Weapon Makeshift Sword Piercing Weapon Makeshift Spear Build | -11 -10 -9 -9 -9 -8 -8 -8 -8 -7 -7 -7 -6 -6 -6 -6 -6 -5 -5 -5 -5 -5 -5 -4 -4 -4 -4 -3 -3 -3 -3 -2 -2 -1 -1 ------- Run | Scr Mat Mat Min Exi Min Mat Gar Mat Fac Was Fac Fac Low Low Zio Dee Pro Fac Ext Cet Arc Hub Fac Upp Upp Zhi Pro Res Arm Lab Res Tes Acc Com Slots Evolved 18 | . . 2 . . . 2 . . 2 . . 2 . . . . . 2 . . . . 2 . . . . 2 . . 2 . 2 . Power . | . . . . . . . . . . . . . . . . . . . . . . . . . . . . . . . . . . . Propulsion . | . . . . . . . . . . . . . . . . . . . . . . . . . . . . . . . . . . . Utility 18 | . . 2 . . . 2 . . 2 . . 2 . . . . . 2 . . . . 2 . . . . 2 . . 2 . 2 . Weapon . | . . . . . . . . . . . . . . . . . . . . . . . . . . . . . . . . . . . Parts Attached 530 | 7 5 16 3 3 2 46 17 22 10 1 13 29 6 8 19 67 23 32 14 25 . 8 20 9 5 4 . 33 1 12 12 8 6 44 Power 38 | 1 1 1 . . 1 3 . 3 . . . 1 1 . 1 9 2 3 . 2 . . . . . . . 2 . 1 . 1 . 5 Engine 9 | 1 1 . . . . 1 . 2 . . . 1 . . . 2 . 1 . . . . . . . . . . . . . . . . Core 8 | . . 1 . . 1 2 . 1 . . . . . . . . . 2 . 1 . . . . . . . . . . . . . . Reactor 21 | . . . . . . . . . . . . . 1 . 1 7 2 . . 1 . . . . . . . 2 . 1 . 1 . 5 Propulsion 64 | 3 . 2 1 1 . 5 6 3 2 . 1 5 1 . 4 8 1 7 . 1 . 1 2 3 . . . 4 . . . . . 3 Treads 17 | 1 . 1 . . . 5 3 . . . . . . . 4 3 . . . . . . . . . . . . . . . . . . Leg 4 | . . . . . . . . . . . . . . . . 1 1 2 . . . . . . . . . . . . . . . . Wheel 43 | 2 . 1 1 1 . . 3 3 2 . 1 5 1 . . 4 . 5 . 1 . 1 2 3 . . . 4 . . . . . 3 Hover . | . . . . . . . . . . . . . . . . . . . . . . . . . . . . . . . . . . . Flight . | . . . . . . . . . . . . . . . . . . . . . . . . . . . . . . . . . . . Utility 202 | 1 2 4 . 2 1 16 3 2 8 . 4 7 . . 10 29 4 9 9 11 . 3 10 3 2 4 . 17 1 5 8 4 5 18 Device 55 | . . 1 . . 1 3 1 . 2 . . 4 . . 6 4 . 2 1 3 . . 3 1 1 1 . 3 1 2 7 . . 8 Storage 39 | 1 2 1 . 2 . 4 . . 3 . 3 . . . . 10 . 1 . 1 . . 1 . . 1 . 1 . . . . 1 7 Processor 7 | . . . . . . . . . 1 . . . . . . . . . 1 . . . 2 . . . . 1 . . . . 2 . Hackware 6 | . . . . . . . . . 2 . . 1 . . . . . . . 1 . 1 . . . . . . . . . . 1 . Protection 95 | . . 2 . . . 9 2 2 . . 1 2 . . 4 15 4 6 7 6 . 2 4 2 1 2 . 12 . 3 1 4 1 3 Artifact . | . . . . . . . . . . . . . . . . . . . . . . . . . . . . . . . . . . . Weapon 226 | 2 2 9 2 . . 22 8 14 . 1 8 16 4 8 4 21 16 13 5 11 . 4 8 3 3 . . 10 . 6 4 3 1 18 Energy Gun 33 | 1 . 2 . . . 4 3 6 . . . 3 . . . 2 4 1 . 2 . . . . . . . . . 2 . 2 . 1 Energy Cannon 32 | . 2 5 1 . . 3 . . . . 3 4 . . . 1 . . . . . . . . . . . . . 1 3 1 1 7 Ballistic Gun 52 | 1 . 1 . . . 8 2 . . . . . 1 4 3 3 . 7 3 4 . 3 3 1 . . . 4 . 2 . . . 2 Ballistic Cannon 13 | . . . . . . 2 . 5 . 1 2 2 1 . . . . . . . . . . . . . . . . . . . . . Launcher 54 | . . 1 1 . . 3 3 1 . . 1 5 1 3 1 5 7 3 1 3 . 1 2 1 1 . . 2 . . 1 . . 7 Special Weapon 12 | . . . . . . . . . . . . . . . . 4 4 . . 1 . . . 1 . . . . . 1 . . . 1 Impact Weapon . | . . . . . . . . . . . . . . . . . . . . . . . . . . . . . . . . . . . Slashing Weapon 10 | . . . . . . 2 . 2 . . 1 2 . 1 . 2 . . . . . . . . . . . . . . . . . . Piercing Weapon 20 | . . . . . . . . . . . 1 . 1 . . 4 1 2 1 1 . . 3 . 2 . . 4 . . . . . . Special Melee Weapon . | . . . . . . . . . . . . . . . . . . . . . . . . . . . . . . . . . . . Unidentified Prototypes 41 | . . . . . . . . . . . . . . . . 13 . . . 7 . . . . . 3 . 3 1 5 1 3 . 5 Parts Lost 90 | . 1 3 1 . . 9 1 2 . . 1 3 1 . 3 15 5 11 1 1 . 4 . 2 . . . 6 . . . . . 20 Power 11 | . 1 . . . . 1 . 1 . . . . . . 1 1 2 1 . . . . . . . . . 1 . . . . . 2 Propulsion 19 | . . . 1 . . . . . . . . 1 1 . . 2 1 3 . 1 . 2 . 2 . . . 2 . . . . . 3 Utility 43 | . . . . . . 5 1 . . . 1 . . . 2 11 2 5 1 . . 1 . . . . . 3 . . . . . 11 Weapon 17 | . . 3 . . . 3 . 1 . . . 2 . . . 1 . 2 . . . 1 . . . . . . . . . . . 4 Highest Loss Streak 19 | . 1 2 1 . . 5 1 2 . . 1 1 1 . 2 5 4 3 1 1 . 3 . 2 . . . 6 . . . . . 19 Average Slot Usage (%) 94 | . 98 90 99 100 100 99 100 99 99 100 94 95 100 100 99 81 99 89 98 99 100 99 88 97 100 99 100 95 . 97 94 88 87 80 Engine 2 | . 13 5 . . . 2 9 5 7 7 7 6 3 . . 1 . 1 . . . . . . . . . . . . . . . . Core 2 | . . 5 11 11 11 6 . 3 . . . . . . . . . 1 5 4 5 5 5 5 5 5 5 2 . . . . . . Reactor 2 | . . . . . . . . . . . . . 2 6 6 4 5 1 . . . . . . . . . 1 . 8 8 8 7 6 Treads 2 | . 14 11 11 1 . 15 15 8 . . . . . . 3 1 . . . . . . . . . . . . . . . . . . Leg 2 | . . . . . . . . . . . . . . . . 9 13 4 . . . . . . . . . . . . . . . . Wheel 7 | . 14 10 10 20 22 2 3 9 14 15 9 10 13 13 9 . . 3 11 10 11 10 7 7 10 10 10 8 . 9 8 8 7 6 Device 6 | . . 5 11 11 11 7 . . 6 7 5 8 6 6 6 13 . 2 2 . 5 3 2 5 4 4 5 2 . 5 13 12 11 11 Storage 34 | . 26 24 22 22 22 29 36 36 30 30 30 26 26 26 26 25 60 52 52 52 52 52 46 47 47 47 47 41 . 31 25 25 23 22 Processor 5 | . . . . . . . . . 6 7 7 6 6 6 6 5 . . 3 5 5 5 7 10 10 10 10 13 . 13 12 12 12 14 Hackware 4 | . . . . . . . . . 10 15 15 17 20 20 16 . . . . . . 2 . . . . . . . . . . 1 . Protection 8 | . . 5 11 11 11 15 17 17 4 . 1 4 6 6 9 7 6 6 8 9 5 4 7 10 10 10 10 12 . 19 18 13 15 10 Energy Gun 1 | . 4 5 . . . . 8 14 7 5 . 2 . . . . . . . . 5 3 . . . . . . . . . 3 1 . Energy Cannon 2 | . 18 16 21 22 22 3 . . . . 4 2 . . . 2 . . . . . . . . . . . . . . 3 . 1 1 Ballistic Gun 3 | . 4 . . . . 9 4 . . . . . 1 6 7 1 . 7 8 1 . 3 6 5 5 5 5 4 . 3 . . . . Slashing Weapon 1 | . . . . . . . . 1 7 7 6 5 6 4 4 . . . . . . . . . . . . . . . . . . . Piercing Weapon 1 | . . . . . . . . . . . . . . . . 1 5 1 2 5 5 3 3 3 3 5 5 3 . 4 4 4 3 2 Naked Turns 19 | . . . . . . . . . . . . . . . . . . . . . . . . . . . . . . . . . . 19 Heaviest Build 330 | 11 43 54 54 70 70 120 122 120 121 116 169 181 172 173 181 277 277 308 308 305 300 305 311 304 303 303 303 323 317 330 258 258 273 284 Greatest Support 70 | 26 20 40 20 20 10 46 43 43 32 32 32 32 32 32 56 70 60 54 32 32 32 32 32 32 32 32 32 32 26 26 26 26 26 32 Greatest Overweight (x) 30 | . 2 3 3 6 6 3 7 7 4 3 6 6 5 5 5 10 5 29 9 9 9 19 19 30 9 9 9 17 12 12 9 9 10 17 Average Overweight (x) 6 | . 1 2 2 5 6 1 3 5 3 3 4 4 5 5 4 2 4 10 8 8 9 9 13 15 9 9 9 9 12 11 8 8 10 8 Largest Inventory Capacity 68 | 6 16 20 16 18 18 30 30 30 32 32 36 36 36 36 36 68 68 68 68 68 68 68 68 68 68 68 68 68 68 68 44 44 44 44 Average Capacity 43 | 5 15 16 16 17 18 25 30 30 31 32 35 36 36 36 36 29 68 68 68 68 68 68 67 68 68 68 68 68 68 52 44 44 44 42 Most Carried 68 | 4 14 19 16 18 18 30 30 30 32 32 36 36 36 36 36 68 68 68 68 68 68 68 68 68 68 68 68 68 68 68 44 44 41 44 Average Carried 41 | 1 10 15 15 16 17 24 29 29 30 31 34 35 35 35 35 22 66 66 67 67 68 67 66 67 68 67 68 67 67 47 41 41 40 38 Final Capacity 68 | 6 16 16 16 18 18 30 30 30 32 32 36 36 36 36 36 68 68 68 68 68 68 68 68 68 68 68 68 68 68 68 44 44 44 44 Final Carried 68 | 4 13 16 16 18 18 30 29 30 32 32 35 36 36 36 31 68 65 66 68 68 68 66 67 68 68 68 68 68 67 67 43 42 41 36 Class Distribution -------------------- 82% | Hauler-Mutant 9% | Mutant 3% | Golem Dominant Class ---------------- Mutant | -10/Materials Mutant | -9/Materials Mutant | -9/Mines Mutant | -9/Exiles Mutant | -8/Mines Hauler-Mutant | -8/Materials Hauler-Mutant | -8/Garrison Hauler-Mutant | -8/Materials Hauler-Mutant | -7/Factory Hauler-Mutant | -7/Waste Hauler-Mutant | -7/Factory Hauler-Mutant | -6/Factory Hauler-Mutant | -6/Lower Caves Hauler-Mutant | -6/Lower Caves Hauler-Mutant | -6/Zion Hauler-Mutant | -6/Deep Caves Hauler-Mutant | -5/Proximity Caves Hauler-Mutant | -5/Factory Hauler-Mutant | -5/Extension Hauler-Mutant | -5/Cetus Hauler-Mutant | -5/Archives Hauler-Mutant | -5/Hub_04(d) Hauler-Mutant | -4/Factory Hauler-Mutant | -4/Upper Caves Hauler-Mutant | -4/Upper Caves Hauler-Mutant | -4/Zhirov Hauler-Mutant | -3/Proximity Caves Hauler-Mutant | -3/Research Hauler-Mutant | -3/Armory Hauler-Mutant | -3/Lab Hauler-Mutant | -2/Research Hauler-Mutant | -2/Testing Hauler-Assassin | -1/Access Hauler-Assassin | -1/Command Resources | -11 -10 -9 -9 -9 -8 -8 -8 -8 -7 -7 -7 -6 -6 -6 -6 -6 -5 -5 -5 -5 -5 -5 -4 -4 -4 -4 -3 -3 -3 -3 -2 -2 -1 -1 ----------- Run | Scr Mat Mat Min Exi Min Mat Gar Mat Fac Was Fac Fac Low Low Zio Dee Pro Fac Ext Cet Arc Hub Fac Upp Upp Zhi Pro Res Arm Lab Res Tes Acc Com Matter Collected 9923 | 217 149 173 73 . 76 646 488 369 . 116 208 352 111 151 374 1397 426 897 602 370 . 125 195 291 191 . . 554 . . 274 106 . 992 Remotely . | . . . . . . . . . . . . . . . . . . . . . . . . . . . . . . . . . . . Salvage Created 23649 | 55 312 668 157 . 58 1407 222 836 89 744 404 1028 387 269 892 3394 1728 1949 520 828 . 738 734 330 121 . . 1346 . 228 . 87 181 3937 Parts 864 | 1 15 35 12 . 1 77 12 40 3 24 25 30 14 17 48 45 68 80 18 35 . 29 39 12 2 . . 53 . . . 6 4 119 Haulers Intercepted 10 | . . 1 . . . 2 . . 1 . 1 2 . . . . . 1 . . . 1 . . . . . 1 . . . . . . Recyclers Shooed 12 | . 1 2 . . . 2 . 1 . . 1 1 . . . . . . 1 . . . 1 . . . . . . . . . . 2 Parts Field Recycled . | . . . . . . . . . . . . . . . . . . . . . . . . . . . . . . . . . . . Retrieved Matter . | . . . . . . . . . . . . . . . . . . . . . . . . . . . . . . . . . . . Parts Self-Destructed 28 | . . . . . . . . . . . . . 3 7 . . 8 . . . . . . 10 . . . . . . . . . . Prevented 76 | . . . . . . . . . . . . . 9 5 . . 56 . . . . . . 4 2 . . . . . . . . . Kills | -11 -10 -9 -9 -9 -8 -8 -8 -8 -7 -7 -7 -6 -6 -6 -6 -6 -5 -5 -5 -5 -5 -5 -4 -4 -4 -4 -3 -3 -3 -3 -2 -2 -1 -1 ------- Run | Scr Mat Mat Min Exi Min Mat Gar Mat Fac Was Fac Fac Low Low Zio Dee Pro Fac Ext Cet Arc Hub Fac Upp Upp Zhi Pro Res Arm Lab Res Tes Acc Com Combat Hostiles Destroyed 305 | . 8 14 5 . 1 20 14 13 . . 8 9 5 7 6 56 26 27 8 10 . 8 7 2 1 . . 15 . . . . 3 32 Melee 22 | . . . . . . 1 . . . . . . . . . 14 . 5 . . . . 1 . . . . 1 . . . . . . Guns 66 | . . 5 . . . 8 3 10 . . . 1 1 1 2 3 2 11 8 . . 4 3 1 . . . 1 . . . . . 2 Cannons 39 | . 8 5 1 . 1 6 1 . . . 5 1 . . . 5 . . . . . . . . . . . . . . . . 3 3 AOE 136 | . . 4 4 . . 5 10 3 . . 3 3 3 5 . 28 13 11 . 6 . 3 3 1 . . . 9 . . . . . 22 Classes Destroyed 29 | 1 4 4 2 . . 2 . . . 2 . . 1 1 2 4 1 . . . . . . . 1 . . 2 . . . . . 2 Worker 15 | . 1 1 . . . 3 . 1 . . 2 . . . . . . . . . . 2 4 . . . . . . . . . . 1 Builder 10 | . . . 1 . . 5 . 1 . . . 1 . . . . . 1 . . . 1 . . . . . . . . . . . . Tunneler 4 | . . . 1 . . 1 . . . . . . . . . . . 1 . . . . 1 . . . . . . . . . . . Hauler 10 | . . 1 . . . 2 . . 1 . 1 2 . . . . . 1 . . . 1 . . . . . 1 . . . . . . Recycler 20 | 1 1 1 . . . 4 . 2 . . . 1 . . . . . 3 . . . . 3 . . . . 1 . . . . . 3 Minesweeper 1 | . . . . . . . . . . . . . . . . . . . . . . . . . 1 . . . . . . . . . Mechanic 6 | . . . . . . . . . . . . . . . . . . 1 . . . . . . . . . . . . . . . 5 Operator 4 | . 1 . . . . . . . . . . . . . . . . . 1 . . 1 1 . . . . . . . . . . . Watcher 6 | . . 1 . . . . . 2 1 . . . . . . . . . . 1 . . . . . . . . . . . . . 1 Swarmer 56 | . 6 3 4 . . 4 8 4 . . 3 . . 3 . . 5 10 . . . . 4 . . . . 1 . . . . 1 . Saboteur 2 | . . . . . . . . . . . . . . . . . . . . . . . . . . . . . . . . . . 2 Grunt 91 | . 2 9 . . 1 5 4 4 . . 3 3 4 . . . 10 8 6 7 . 4 . . . . . 7 . . . . 1 13 Brawler 10 | . . 1 1 . . . 1 1 . . . . . . . . 3 . . . . . . . . . . . . . . . . 3 Duelist 5 | . . 1 . . . 1 . 1 . . . . . . . . 2 . . . . . . . . . . . . . . . . . Protector 5 | . . . . . . . . . . . . . . . . . 1 . . . . . . . . . . . . . . . 1 3 Sentry 25 | . . . . . . 8 . 2 . . 1 2 . . . . 2 3 1 . . 3 . . 1 . . 2 . . . . . . Hunter 27 | . . . . . . 2 1 1 . . 1 5 1 1 . . 3 3 . 1 . 1 . 2 . . . 2 . . . . . 3 Programmer 11 | . . . . . . . . . . . . . . 1 . . . 3 1 . . . 3 . . . . . . . . . . 3 Cetus Guard 2 | . . . . . . . . . . . . . . . . . . . . 2 . . . . . . . . . . . . . . M Guard 2 | . . . . . . . . . . . . . . . . . . . . . . . . . . . . . . . . . . 2 Investigator 1 | . . . . . . . . . . . . . . . . . . . . . . . . . . . . . . . . . . 1 Striker 3 | . . . . . . . . . . . . . . . . . . . . . . . . . . . . 2 . . . . . 1 Executioner 2 | . . . . . . . . . . . . . . . . . . . . . . . . . . . . 1 . . . . . 1 Zionite 9 | . . . . . . . . . . . . . . . 9 . . . . . . . . . . . . . . . . . . . Z-Light 7 | . . . . . . . . . . . . . . . . 7 . . . . . . . . . . . . . . . . . . Packrat 2 | . . . . . . . . . . . . . . . . . . . . . . . . 2 . . . . . . . . . . Assembler 2 | . . . . . . . . . . . . . . . . 2 . . . . . . . . . . . . . . . . . . Assembled 31 | . . . . . . . . . . . . . . . . 31 . . . . . . . . . . . . . . . . . . Golem 23 | . . . . . . . . . . . . . . . . 18 . . . . . . . . . . . . . 2 . . . 3 Surgeon 2 | . . . . . . . . . . 2 . . . . . . . . . . . . . . . . . . . . . . . . Wasp 2 | . . . . . . . . . . 1 . . . . 1 . . . . . . . . . . . . . . . . . . . Thug 9 | . . . . . . . . . . 7 . . . . 2 . . . . . . . . . . . . . . . . . . . Savage 3 | . . . . . . . . . . . . . . 2 . . . . . 1 . . . . . . . . . . . . . . Butcher 3 | . . . . . . . . . . 2 . . . . 1 . . . . . . . . . . . . . . . . . . . Martyr 2 | . . . . . . . . . . 2 . . . . . . . . . . . . . . . . . . . . . . . . Fireman 2 | . . . . . . . . . . . . . . . 2 . . . . . . . . . . . . . . . . . . . Mutant 6 | . . . . . . . . . . . . . 1 . 5 . . . . . . . . . . . . . . . . . . . Best Kill Streak 23 | 1 3 4 4 . 1 14 5 3 1 . 3 3 4 4 6 23 14 5 2 7 . 9 9 2 1 . . 12 . . . . 3 20 Combat Bots Only 23 | . 3 4 4 . 1 4 5 2 . . 3 3 4 4 4 23 14 5 2 6 . 6 5 2 1 . . 12 . . . . 3 17 Max Kills in Single Turn 7 | 1 1 2 2 . 1 4 3 2 1 1 3 1 2 3 1 7 2 3 1 2 . 3 3 1 1 . . 3 . 1 . . 1 5 Gunslinging . | . . . . . . . . . . . . . . . . . . . . . . . . . . . . . . . . . . . Exploded 7 | . . 2 2 . . 3 3 2 . . 3 1 1 3 . 7 2 3 . 2 . 2 2 1 . . . 3 . . . . . 4 Melee 1 | . . . . . . 1 . . . . . . . . . 1 . 1 . . . . 1 . . . . 1 . . . . . . Uniques/NPCs Destroyed 3 | . . . . . . . . . . . . . . . 1 . . . . 1 . . . . . . . . . . . . . 1 Imprinter (-6/Zion) A7 (-5/Cetus) MAIN.C Shell (-1/Command) Combat | -11 -10 -9 -9 -9 -8 -8 -8 -8 -7 -7 -7 -6 -6 -6 -6 -6 -5 -5 -5 -5 -5 -5 -4 -4 -4 -4 -3 -3 -3 -3 -2 -2 -1 -1 -------- Run | Scr Mat Mat Min Exi Min Mat Gar Mat Fac Was Fac Fac Low Low Zio Dee Pro Fac Ext Cet Arc Hub Fac Upp Upp Zhi Pro Res Arm Lab Res Tes Acc Com Damage Taken 29894 | . 202 565 130 . 29 1703 791 538 28 . 556 1052 40 61 814 3210 2328 3624 782 466 . 1033 460 589 145 . . 2968 . . 177 . 27 7576 Core 4188 | . 29 121 35 . 12 212 116 13 . . 152 172 20 . 59 259 235 466 106 29 . 66 103 . . . . 347 . . 27 . . 1609 Absorbed by Shields 8273 | . . . . . . . 41 . . . . . . . . . . 544 82 87 . 145 . . . . . 44 . . 122 . . 7208 Core Remaining (%) 66 | 100 88 . . . 58 . . 38 . . 78 . . . . . 12 . . . . 33 . . . . 91 . . 66 . 98 . . Volleys Fired 969 | 2 26 51 11 . 3 68 19 46 11 1 22 37 12 10 36 122 59 87 44 32 . 26 32 10 7 . . 20 . 16 . 7 8 144 Largest 2 | 2 2 2 2 . 2 2 2 2 1 1 2 2 1 2 2 2 1 2 2 1 . 2 2 1 1 . . 2 . 1 . 1 1 2 Hottest 240 | 60 120 120 120 . 120 150 100 100 50 44 88 171 39 60 60 69 60 88 66 46 . 95 70 46 46 . . 70 . 20 . 240 240 240 Shots Fired 1319 | 4 46 79 17 . 6 113 31 84 11 1 27 48 12 12 64 140 56 141 77 32 . 36 38 10 7 . . 24 . 16 . 7 8 172 Gun 644 | 4 . 33 . . . 60 15 71 11 . . 11 7 5 59 16 6 123 77 2 . 30 36 3 3 . . 8 . . . 2 1 61 Cannon 336 | . 46 44 12 . 6 46 9 12 . 1 26 26 . . . 29 . . . . . . . . . . . . . . . 5 7 67 Launcher 272 | . . 2 5 . . 7 7 1 . . 1 11 5 7 5 66 50 18 . 17 . 6 2 2 4 . . 16 . . . . . 40 Special 67 | . . . . . . . . . . . . . . . . 29 . . . 13 . . . 5 . . . . . 16 . . . 4 Kinetic 521 | 2 . 4 . . . 61 18 12 . 1 12 4 7 5 59 16 . 117 77 2 . 18 36 3 3 . . 8 . . . . . 56 Thermal 309 | . 46 44 12 . 6 31 . . . . . 3 . . . 58 . . . 13 . . . 5 . . . . . 16 . 7 8 60 Explosive 34 | . . 2 5 . . 7 7 1 . . 1 . . 2 . . . 2 . . . . . . . . . . . . . . . 7 Electromagnetic 455 | 2 . 29 . . . 14 6 71 11 . 14 41 5 5 5 66 56 22 . 17 . 18 2 2 4 . . 16 . . . . . 49 Robot Hit Streak 25 | 2 6 10 6 . 8 11 8 10 3 4 5 11 4 3 9 17 12 10 12 4 . 25 11 3 5 . . 8 . 3 . . . 17 Robot Miss Streak 5 | 1 2 4 2 . . 3 1 3 4 5 5 4 1 1 3 5 4 5 4 5 . 1 1 1 2 . . 1 . 3 . . . 3 Penetration Max 2 | . . . . . . . . . . . . . . . 1 . . 1 1 . . 1 1 . . . . . . . . . . 2 Secondary Targets 7 | . . 1 . . . . . 2 . . . . . . . . . 2 1 . . . . . . . . . . . . . . 1 Max Gunslinging Chain 1 | . . 1 . . . . . 1 . . . . . . . . . 1 1 . . . . . . . . . . . . . . 1 Capacitor 87 | . . . . . . . . . . . . . . . . . . . . . . . . . . . . . . . . 7 8 72 Shots Hit Robots 1004 | 2 27 51 9 . 6 78 22 50 7 31 22 34 4 5 57 172 35 125 48 20 . 31 28 7 7 . . 22 . 8 . 5 . 91 Core Hits 922 | 1 12 27 11 . 3 52 24 29 1 15 18 27 10 20 26 191 51 70 24 28 . 27 22 7 3 . . 38 . 3 . 2 4 176 Critical Hits 71 | . . . . . . 2 . . . . 1 . . . 1 7 1 5 4 1 . 6 7 3 . . . 1 . 4 . . 1 27 Critical Kills 30 | . . . . . . 2 . . . . . . . . . 4 1 2 1 . . 3 3 3 . . . 1 . 2 . . 1 7 Critical Parts Destroyed 30 | . . . . . . . . . . . 1 . . . 1 3 . 3 3 . . 3 4 . . . . . . 1 . . . 11 Melee Attacks 489 | . . . . . . 6 . 8 6 41 11 24 5 9 37 123 12 62 . 8 . 2 26 2 22 . 23 12 . 21 4 12 6 7 Impact . | . . . . . . . . . . . . . . . . . . . . . . . . . . . . . . . . . . . Slashing 173 | . . . . . . 6 . 8 6 41 11 24 5 9 37 26 . . . . . . . . . . . . . . . . . . Piercing 316 | . . . . . . . . . . . . . . . . 97 12 62 . 8 . 2 26 2 22 . 23 12 . 21 4 12 6 7 Sneak Attacks 77 | . . . . . . 4 . 2 . 30 4 1 . . 14 . . 4 . 6 . . 4 . 2 . . 1 . . . . . 5 Combat Hostiles 1 | . . . . . . . . . . . . . . . . . . 1 . . . . . . . . . . . . . . . . Follow-up Attacks . | . . . . . . . . . . . . . . . . . . . . . . . . . . . . . . . . . . . Damage Inflicted 57715 | 15 471 1093 513 . 105 2876 1368 1334 211 2984 1277 1997 577 824 2957 7355 2621 4272 1317 2520 . 1502 1792 222 313 . . 2227 . 130 . 619 274 13949 Guns 10944 | 15 . 311 . . . 659 240 806 137 . . 170 132 141 950 242 96 2110 1317 12 . 740 659 30 27 . . 152 . . . . . 1998 Cannons 6661 | . 471 471 139 . 105 788 133 43 . 15 521 774 . . . 647 . . . . . . . . . . . . . . . . 274 2280 Explosions 26854 | . . 311 374 . . 938 995 293 41 . 266 950 445 683 538 3061 2525 1046 . 2036 . 735 728 137 126 . . 1807 . . . . . 8819 Melee 12592 | . . . . . . 491 . 192 33 2969 490 103 . . 1469 3100 . 1116 . 385 . 27 405 . 160 . . 268 . . . 619 . 765 Ramming 43 | . . . . . . . . . . . . . . . . . . . . . . . . . . . . . . . . . . 43 Kinetic 9438 | . . 14 . . . 631 262 43 . 15 220 78 132 141 950 242 . 2011 1317 12 . 504 659 30 27 . . 152 . . . . . 1998 Thermal 12261 | . 471 497 139 . 105 635 . 205 41 . . 303 96 . 107 1525 278 127 . 731 . . 491 119 . . . 404 . 130 . . 274 5583 Explosive 6856 | . . 285 374 . . 938 995 88 . . 266 250 . 303 . . . 363 . . . . 123 . . . . . . . . . . 2871 Electromagnetic 16525 | 15 . 297 . . . 181 111 806 137 . 301 1263 349 380 431 2488 2343 655 . 1392 . 971 114 73 126 . . 1403 . . . . . 2689 Impact . | . . . . . . . . . . . . . . . . . . . . . . . . . . . . . . . . . . . Slashing 6539 | . . . . . . 491 . 192 33 2969 490 103 . . 1469 792 . . . . . . . . . . . . . . . . . . Piercing 6053 | . . . . . . . . . . . . . . . . 2308 . 1116 . 385 . 27 405 . 160 . . 268 . . . 619 . 765 Highest Corruption 45 | . . . 1 1 1 1 1 1 . . . . . . 1 5 9 12 12 2 2 12 4 4 4 4 4 . . . . . . 45 Average Corruption 4 | . . . 1 1 1 1 1 1 . . . . . . 1 4 7 9 5 2 2 2 3 4 4 4 4 . . . . . . 11 Corruption Purged 12 | . . . . . . . . . . . . . . . . . . . 12 . . . . . . . . . . . . . . . Effects 374 | . . . 1 3 . 6 1 5 . . . . . . 5 102 32 77 37 12 1 5 15 13 8 6 11 . . . . . . 34 Message Errors 93 | . . . . 1 . . 1 3 . . . . . . 1 29 13 15 7 2 1 2 5 4 2 1 2 . . . . . . 4 Matter Fused 67 | . . . . . . . . . . . . . . . . 20 2 17 10 . . . 4 3 2 4 2 . . . . . . 3 Heat Flow Errors 38 | . . . . . . . . . . . . . . . . 8 2 7 4 5 . . 3 2 3 1 2 . . . . . . 1 Energy Discharges 39 | . . . . . . . . 1 . . . . . . 1 14 4 6 3 2 . 2 1 1 . . 1 . . . . . . 3 Parts Rejected 5 | . . . . . . . . . . . . . . . . 2 1 1 . . . . 1 . . . . . . . . . . . Data Loss (minor) 45 | . . . . 2 . 3 . . . . . . . . 1 18 2 6 3 2 . . 1 3 . . 3 . . . . . . 1 Data Loss (major) 3 | . . . . . . . . . . . . . . . . 1 1 1 . . . . . . . . . . . . . . . . Misfires 8 | . . . . . . . . . . . . . . . . 4 . 2 1 . . . . . . . . . . . . . . 1 Alerts 2 | . . . . . . . . . . . . . . . . . . 1 1 . . . . . . . . . . . . . . . Misdirections 6 | . . . . . . . . . . . . . . . . . . 2 1 . . . . . . . . . . . . . . 3 Targeting Errors 61 | . . . 1 . . 2 . 1 . . . . . . 2 6 4 19 7 1 . . . . 1 . 1 . . . . . . 16 Weapon Failures 7 | . . . . . . 1 . . . . . . . . . . 3 . . . . 1 . . . . . . . . . . . 2 Overload Shots 8 | . . . . . . . . . . . . . . . . . . . . . . . . . . . . . . . . 2 1 5 Overflow Damage 2784 | . 10 9 17 . . 117 99 61 . 504 183 187 . 8 480 127 49 165 . 40 . 3 192 2 48 . . 85 . . . . 8 390 Projectiles 137 | . 10 7 . . . 1 15 . . . 14 12 . . . 24 . . . . . . . 2 . . . . . . . . 8 44 Explosions 1127 | . . 2 17 . . 37 84 5 . . 12 102 . 8 28 103 49 78 . 40 . 3 128 . . . . 85 . . . . . 346 Melee 1520 | . . . . . . 79 . 56 . 504 157 73 . . 452 . . 87 . . . . 64 . 48 . . . . . . . . . Knockbacks 13 | . . . . . . 2 1 3 . . 7 . . . . . . . . . . . . . . . . . . . . . . . Impact . | . . . . . . . . . . . . . . . . . . . . . . . . . . . . . . . . . . . Kinetic 12 | . . . . . . 1 1 3 . . 7 . . . . . . . . . . . . . . . . . . . . . . . Secondary 1 | . . . . . . 1 . . . . . . . . . . . . . . . . . . . . . . . . . . . . Self-Inflicted Damage 1215 | . . . 10 . . 165 112 65 . . . 74 . 24 . 83 258 147 . 6 . 130 . . . . . 90 . . . . . 51 Shots 57 | . . . 1 . . 3 5 2 . . . 3 . 1 . 6 17 6 . 1 . 5 . . . . . 3 . . . . . 4 Rammed 12 | . . . . . . . . . . . . . . . . . . . . . . . . . . . . . . . . . . 12 Targets Rammed 12 | . . . . . . . . . . . . . . . . . . . . . . . . . . . . . . . . . . 12 Kicked . | . . . . . . . . . . . . . . . . . . . . . . . . . . . . . . . . . . . Crushed . | . . . . . . . . . . . . . . . . . . . . . . . . . . . . . . . . . . . Highest Temperature 340 | 20 340 306 168 . 58 263 210 333 32 . 141 184 4 . 214 276 125 272 271 172 . 125 179 253 250 69 193 . . . . 123 145 297 Average Temperature 77 | 20 115 110 68 . 28 77 59 109 19 . 57 62 4 . 73 84 27 75 82 47 . 42 53 90 97 47 103 . . . . 60 64 73 Received Heat Transfer 4418 | . 18 279 . . . 594 333 144 . . 210 189 18 9 29 510 369 636 241 137 . 121 . . 27 . . 245 . . 20 . . 289 Effects 10 | . 2 4 . . . 2 . . . . . . . . 1 . . 1 . . . . . . . . . . . . . . . . Energy Bleed 4 | . 1 1 . . . 1 . . . . . . . . . . . 1 . . . . . . . . . . . . . . . . Interference 5 | . . 3 . . . 1 . . . . . . . . 1 . . . . . . . . . . . . . . . . . . . Matter Decay 1 | . 1 . . . . . . . . . . . . . . . . . . . . . . . . . . . . . . . . . Siege Activations . | . . . . . . . . . . . . . . . . . . . . . . . . . . . . . . . . . . . Robots Corrupted 44 | . . . . . . . . . . . . 4 1 1 4 7 11 . . 5 . 1 . . 1 . . 4 . . . . . 5 Combat Hostiles 42 | . . . . . . . . . . . . 4 1 1 4 6 11 . . 4 . 1 . . 1 . . 4 . . . . . 5 Parts Fried 111 | . . 2 . . . . . 5 1 . 3 11 1 . 6 32 15 5 . 6 . 6 . . . . . 13 . . . . . 5 Impact Corruptions . | . . . . . . . . . . . . . . . . . . . . . . . . . . . . . . . . . . . Robots Melted . | . . . . . . . . . . . . . . . . . . . . . . . . . . . . . . . . . . . Combat Hostiles . | . . . . . . . . . . . . . . . . . . . . . . . . . . . . . . . . . . . Parts Melted 11 | . 4 . 1 . . . . . . . . . . . . . . . 1 . . . . . . . . . . . . . 3 2 Heat Transferred 12483 | . 999 1049 296 . 222 888 . 250 50 . . 350 100 . 200 2011 150 100 . 824 . . 300 235 . . . 300 . 555 . . 259 3345 Parts Sabotaged . | . . . . . . . . . . . . . . . . . . . . . . . . . . . . . . . . . . . Parts Stolen . | . . . . . . . . . . . . . . . . . . . . . . . . . . . . . . . . . . . Parts Stripped . | . . . . . . . . . . . . . . . . . . . . . . . . . . . . . . . . . . . Power Chain Reactions 53 | . . 1 . . . . . 4 1 . . 1 1 . 1 6 6 4 . 8 . 1 . 1 . . . 3 . . . . . 15 Missiles Intercepted . | . . . . . . . . . . . . . . . . . . . . . . . . . . . . . . . . . . . Alert | -11 -10 -9 -9 -9 -8 -8 -8 -8 -7 -7 -7 -6 -6 -6 -6 -6 -5 -5 -5 -5 -5 -5 -4 -4 -4 -4 -3 -3 -3 -3 -2 -2 -1 -1 ------- Run | Scr Mat Mat Min Exi Min Mat Gar Mat Fac Was Fac Fac Low Low Zio Dee Pro Fac Ext Cet Arc Hub Fac Upp Upp Zhi Pro Res Arm Lab Res Tes Acc Com Peak Influence 7097 | 5 156 375 252 . 125 347 609 416 533 131 211 952 . . . . . 641 683 697 684 1031 617 . . . . 319 133 . 374 772 1732 7097 Average Influence 488 | 1 51 208 168 . 52 172 482 285 220 31 56 312 . . . . . 369 477 476 443 485 298 . . . . 132 133 . 117 430 979 4388 Maximum Alert Level 5 | . . 1 1 . . 1 2 2 2 . 1 3 . . . . . 2 2 2 2 3 2 . . . . 1 . . 1 3 5 5 Low Security (%) 7 | 100 100 37 72 . 100 56 7 13 55 100 93 43 . . . . . 36 . . . . 20 . . . . 60 100 . 77 8 . . Level 1 6 | . . 62 27 . . 43 14 76 44 . 6 32 . . . . . 13 29 39 55 15 38 . . . . 39 . . 22 63 . . Level 2 5 | . . . . . . . 78 10 . . . 20 . . . . . 50 70 60 45 78 41 . . . . . . . . 14 45 . Level 3 2 | . . . . . . . . . . . . 3 . . . . . . . . . 6 . . . . . . . . . 14 8 2 Level 4 3 | . . . . . . . . . . . . . . . . . . . . . . . . . . . . . . . . . 28 3 Level 5 57 | . . . . . . . . . . . . . . . . . . . . . . . . . . . . . . . . . 17 58 High Security 16 | . . . . . . . . . . . . . . . . . . . . . . . . . . . . . . . . . . 35 Max Security . | . . . . . . . . . . . . . . . . . . . . . . . . . . . . . . . . . . . Squads Dispatched 73 | . . . . . . . . 4 1 . 4 4 . . . . 1 8 2 . . 4 3 . . . . 2 . . 1 2 5 32 Investigation 9 | . . . . . . . . 1 . . . 1 . . . . . 1 1 . . 1 . . . . . 2 . . . . 2 . Extermination 8 | . . . . . . . . . . . 2 1 . . . . . 2 . . . . 2 . . . . . . . . 1 . . Reinforcement 12 | . . . . . . . . . . . 2 1 . . . . . 3 1 . . 3 . . . . . . . . . 1 1 . Assault 39 | . . . . . . . . . 1 . . 1 . . . . 1 1 . . . . 1 . . . . . . . . . 2 32 Garrison 5 | . . . . . . . . 3 . . . . . . . . . 1 . . . . . . . . . . . . 1 . . . Intercept . | . . . . . . . . . . . . . . . . . . . . . . . . . . . . . . . . . . . Construction Impeded 3 | . . . . . . . . . . . 1 . . . . . . 1 . . . 1 . . . . . . . . . . . . Haulers Reinforced 3 | . . . . . . . . . . . 1 . . . . . . 1 . . . 1 . . . . . . . . . . . . Stealth | -11 -10 -9 -9 -9 -8 -8 -8 -8 -7 -7 -7 -6 -6 -6 -6 -6 -5 -5 -5 -5 -5 -5 -4 -4 -4 -4 -3 -3 -3 -3 -2 -2 -1 -1 --------- Run | Scr Mat Mat Min Exi Min Mat Gar Mat Fac Was Fac Fac Low Low Zio Dee Pro Fac Ext Cet Arc Hub Fac Upp Upp Zhi Pro Res Arm Lab Res Tes Acc Com Distress Signals 24 | . . 4 . . 1 3 . 4 . . . . . . . . . 1 2 2 . 1 . . . . . 4 . . . . 1 1 Communications Jammed . | . . . . . . . . . . . . . . . . . . . . . . . . . . . . . . . . . . . Distress Signals . | . . . . . . . . . . . . . . . . . . . . . . . . . . . . . . . . . . . Times Spotted 696 | . 10 22 7 . 4 38 15 19 3 2 15 21 5 9 13 73 29 37 32 35 . 27 9 4 1 . . 27 . . 9 6 13 211 Peak Tracking Total 38 | . 3 5 4 . 1 6 5 3 1 2 5 5 4 4 4 37 10 6 6 11 . 11 4 2 1 . . 10 . . 2 3 11 38 Tactical Retreats 38 | . . 2 1 . . 7 1 1 . . 1 . . 1 . 1 2 3 2 . . 9 . . . . . 2 . . . . . 5 Traps | -11 -10 -9 -9 -9 -8 -8 -8 -8 -7 -7 -7 -6 -6 -6 -6 -6 -5 -5 -5 -5 -5 -5 -4 -4 -4 -4 -3 -3 -3 -3 -2 -2 -1 -1 ------- Run | Scr Mat Mat Min Exi Min Mat Gar Mat Fac Was Fac Fac Low Low Zio Dee Pro Fac Ext Cet Arc Hub Fac Upp Upp Zhi Pro Res Arm Lab Res Tes Acc Com Traps Triggered 19 | . . . . . . 1 10 . 2 . . . . . . . . . 3 . . 3 . . . . . . . . . . . . Indirectly 3 | . . . . . . . . . . . . . . . . . . . . . . 3 . . . . . . . . . . . . Trap Hack Attempts . | . . . . . . . . . . . . . . . . . . . . . . . . . . . . . . . . . . . Triggered . | . . . . . . . . . . . . . . . . . . . . . . . . . . . . . . . . . . . Disarmed 6 | . 6 . . . . . . . . . . . . . . . . . . . . . . . . . . . . . . . . . Reprogrammed . | . . . . . . . . . . . . . . . . . . . . . . . . . . . . . . . . . . . Reused . | . . . . . . . . . . . . . . . . . . . . . . . . . . . . . . . . . . . Traps Extracted . | . . . . . . . . . . . . . . . . . . . . . . . . . . . . . . . . . . . Installed . | . . . . . . . . . . . . . . . . . . . . . . . . . . . . . . . . . . . Triggered 2 | . . . . . . . . . 1 . . . . . . . . . . . . . . . . . . 1 . . . . . . Machines | -11 -10 -9 -9 -9 -8 -8 -8 -8 -7 -7 -7 -6 -6 -6 -6 -6 -5 -5 -5 -5 -5 -5 -4 -4 -4 -4 -3 -3 -3 -3 -2 -2 -1 -1 ---------- Run | Scr Mat Mat Min Exi Min Mat Gar Mat Fac Was Fac Fac Low Low Zio Dee Pro Fac Ext Cet Arc Hub Fac Upp Upp Zhi Pro Res Arm Lab Res Tes Acc Com Machines Disabled 84 | . 1 2 . . . 4 . 1 . . 1 13 1 2 . 5 . 7 . 2 . 12 17 . . . . 1 . 1 . 1 2 11 Max in Single Turn 10 | . 1 1 . . . 1 . 1 . . 1 5 1 1 . 1 . 2 . 2 . 6 10 . . . . 1 . 1 . . 1 2 Garrison Access 8 | . . . . . . . . . 2 . . 1 . . . . . 2 . . . 1 . . . . . 1 . . . . 1 . Phase Generator 1 | . . . . . . . . . . . . . . . . . . . . . . . . . . . . . . . . . . 1 Network Hub 1 | . . . . . . . . . . . . . . . . . . . . . . 1 . . . . . . . . . . . . Machines Sabotaged . | . . . . . . . . . . . . . . . . . . . . . . . . . . . . . . . . . . . Garrisons Compromised . | . . . . . . . . . . . . . . . . . . . . . . . . . . . . . . . . . . . Overloaded Fab Kills 3 | . . . . . . . . . . . . . . . . . . 3 . . . . . . . . . . . . . . . . Fab Network Shutdowns 3 | . . . . . . . . . 1 . . 1 . . . . . 1 . . . . . . . . . . . . . . . . Hacking | -11 -10 -9 -9 -9 -8 -8 -8 -8 -7 -7 -7 -6 -6 -6 -6 -6 -5 -5 -5 -5 -5 -5 -4 -4 -4 -4 -3 -3 -3 -3 -2 -2 -1 -1 --------- Run | Scr Mat Mat Min Exi Min Mat Gar Mat Fac Was Fac Fac Low Low Zio Dee Pro Fac Ext Cet Arc Hub Fac Upp Upp Zhi Pro Res Arm Lab Res Tes Acc Com Machines Accessed 88 | . 4 4 . 1 . 7 . 5 5 . 8 7 . 1 1 . . 5 12 3 1 4 3 2 . 5 . 5 . . . 1 4 . Terminals 52 | . 4 3 . . . 5 . 2 2 . 5 3 . . . . . 2 11 3 . 3 2 1 . . . 2 . . . 1 3 . Fabricators 8 | . . . . . . . . . 1 . 3 2 . . . . . 1 . . . . . . . . . 1 . . . . . . Repair Stations 5 | . . . . . . . . 1 1 . . . . . . . . . . . . . 1 . . . . 2 . . . . . . Recycling Units 4 | . . . . . . 1 . 1 . . . 1 . . . . . . 1 . . . . . . . . . . . . . . . Scanalyzers 2 | . . 1 . . . . . 1 . . . . . . . . . . . . . . . . . . . . . . . . . . Garrison Access 7 | . . . . . . 1 . . 1 . . 1 . . . . . 2 . . . 1 . . . . . . . . . . 1 . Total Hacks 334 | . 14 7 . 4 . 12 . 17 16 . 33 25 . 1 5 . . 33 22 9 25 8 15 5 . 18 . 54 . . . 1 10 . Successful 193 | . 8 5 . 4 . 6 . 13 13 . 19 16 . 1 5 . . 10 13 5 25 4 8 2 . 18 . 13 . . . . 5 . Failed 141 | . 6 2 . . . 6 . 4 3 . 14 9 . . . . . 23 9 4 . 4 7 3 . . . 41 . . . 1 5 . Catastrophic 26 | . 1 . . . . 2 . . . . . . . . . . . 9 . . . 2 2 2 . . . 8 . . . . . . Database Lockouts . | . . . . . . . . . . . . . . . . . . . . . . . . . . . . . . . . . . . Manual 125 | . 12 4 . 1 . 5 . 2 5 . 21 4 . . 4 . . 19 9 7 . 5 8 4 . . . 9 . . . . 6 . Terminals 165 | . 14 6 . . . 9 . 4 6 . 22 12 . . . . . 17 21 9 . 6 8 4 . . . 17 . . . 1 9 . Fabricators 38 | . . . . . . . . . 6 . 11 9 . . . . . 8 . . . . . . . . . 4 . . . . . . Repair Stations 50 | . . . . . . . . 8 2 . . . . . . . . . . . . . 7 . . . . 33 . . . . . . Recycling Units 7 | . . . . . . 2 . 3 . . . 1 . . . . . . 1 . . . . . . . . . . . . . . . Scanalyzers 3 | . . 1 . . . . . 2 . . . . . . . . . . . . . . . . . . . . . . . . . . Garrison Access 17 | . . . . . . 1 . . 2 . . 3 . . . . . 8 . . . 2 . . . . . . . . . . 1 . Terminal Hacks 106 | . 5 2 . 4 . 4 . 1 2 . 6 7 . 1 5 . . 4 10 3 25 1 1 2 . 18 . 2 . . . . 3 . Record 36 | . . . . 4 . . . . . . . . . 1 . . . . . . 25 . . . . 6 . . . . . . . . Part Schematic 12 | . 1 . . . . . . . . . . 1 . . 5 . . . . . . . . 1 . 4 . . . . . . . . Robot Schematic 1 | . . . . . . . . . . . 1 . . . . . . . . . . . . . . . . . . . . . . . Robot Analysis 4 | . . . . . . . . . . . . . . . . . . . . . . . . . . 4 . . . . . . . . Prototype ID Bank 6 | . 1 . . . . . . . . . . 1 . . . . . . . . . . . . . 4 . . . . . . . . Open Door 11 | . . . . . . . . . . . . . . . . . . . 6 1 . . . 1 . . . . . . . . 3 . Branch Access Points 3 | . . . . . . . . . . . . . . . . . . 1 . . . . 1 . . . . 1 . . . . . . Terminal Index 2 | . . . . . . . . . . . 1 . . . . . . . 1 . . . . . . . . . . . . . . . Fabricator Index 1 | . . . . . . . . . . . 1 . . . . . . . . . . . . . . . . . . . . . . . Repair Station Index 1 | . . . . . . . . . . . . . . . . . . . . . . . . . . . . 1 . . . . . . Garrison Index 1 | . . . . . . . . . . . 1 . . . . . . . . . . . . . . . . . . . . . . . Alert Level 1 | . . . . . . . . . . . . . . . . . . . 1 . . . . . . . . . . . . . . . Unreport Threat 10 | . . . . . . 3 . 1 . . . 2 . . . . . 2 . 2 . . . . . . . . . . . . . . Locate Traps 3 | . . . . . . . . . 1 . . 1 . . . . . 1 . . . . . . . . . . . . . . . . Disarm Traps 1 | . 1 . . . . . . . . . . . . . . . . . . . . . . . . . . . . . . . . . Recall Investigation 2 | . 1 . . . . . . . . . . 1 . . . . . . . . . . . . . . . . . . . . . . Recall Extermination 2 | . . . . . . . . . . . 1 1 . . . . . . . . . . . . . . . . . . . . . . Hauler Manifests 2 | . 1 . . . . . . . . . 1 . . . . . . . . . . . . . . . . . . . . . . . Zone Layout 7 | . . 2 . . . 1 . . 1 . . . . . . . . . 2 . . 1 . . . . . . . . . . . . Fabricator Hacks 20 | . . . . . . . . . 5 . 7 5 . . . . . 2 . . . . . . . . . 1 . . . . . . Load Schematic 7 | . . . . . . . . . 1 . 3 1 . . . . . 1 . . . . . . . . . 1 . . . . . . Build 13 | . . . . . . . . . 4 . 4 4 . . . . . 1 . . . . . . . . . . . . . . . . Repair Station Hacks 22 | . . . . . . . . 8 2 . . . . . . . . . . . . . 4 . . . . 8 . . . . . . Scan Component 13 | . . . . . . . . 4 1 . . . . . . . . . . . . . 2 . . . . 6 . . . . . . Repair 9 | . . . . . . . . 4 1 . . . . . . . . . . . . . 2 . . . . 2 . . . . . . Recycling Unit Hacks 3 | . . . . . . . . 1 . . . 1 . . . . . . 1 . . . . . . . . . . . . . . . Retrieve Components 3 | . . . . . . . . 1 . . . 1 . . . . . . 1 . . . . . . . . . . . . . . . Scanalyzer 3 | . . 1 . . . . . 2 . . . . . . . . . . . . . . . . . . . . . . . . . . Insert Component 2 | . . 1 . . . . . 1 . . . . . . . . . . . . . . . . . . . . . . . . . . Analyze 1 | . . . . . . . . 1 . . . . . . . . . . . . . . . . . . . . . . . . . . Garrison Access Hacks 6 | . . . . . . 1 . . 1 . . 1 . . . . . 2 . . . 1 . . . . . . . . . . . . Unlock Access 1 | . . . . . . 1 . . . . . . . . . . . . . . . . . . . . . . . . . . . . Seal Access 5 | . . . . . . . . . 1 . . 1 . . . . . 2 . . . 1 . . . . . . . . . . . . Unauthorized Hacks 33 | . 3 2 . . . 1 . 1 3 . 6 2 . . . . . 2 2 2 . 2 3 . . . . 2 . . . . 2 . Terminals 28 | . 3 2 . . . 1 . 1 2 . 4 1 . . . . . 1 2 2 . 2 3 . . . . 2 . . . . 2 . Track 4 | . 2 1 . . . . . . . . . . . . . . . . . . . . 1 . . . . . . . . . . . Assimilate 1 | . . . . . . . . . . . 1 . . . . . . . . . . . . . . . . . . . . . . . Botnet 20 | . 1 1 . . . 1 . 1 2 . 3 1 . . . . . . 2 2 . . 2 . . . . 2 . . . . 2 . Detonate 1 | . . . . . . . . . . . . . . . . . . . . . . 1 . . . . . . . . . . . . Disrupt 1 | . . . . . . . . . . . . . . . . . . 1 . . . . . . . . . . . . . . . . Sabotage 1 | . . . . . . . . . . . . . . . . . . . . . . 1 . . . . . . . . . . . . Fabricators 5 | . . . . . . . . . 1 . 2 1 . . . . . 1 . . . . . . . . . . . . . . . . Prioritize 2 | . . . . . . . . . 1 . . 1 . . . . . . . . . . . . . . . . . . . . . . Siphon 2 | . . . . . . . . . . . 2 . . . . . . . . . . . . . . . . . . . . . . . Overload 1 | . . . . . . . . . . . . . . . . . . 1 . . . . . . . . . . . . . . . . Repair Stations . | . . . . . . . . . . . . . . . . . . . . . . . . . . . . . . . . . . . Recycling Units . | . . . . . . . . . . . . . . . . . . . . . . . . . . . . . . . . . . . Scanalyzers . | . . . . . . . . . . . . . . . . . . . . . . . . . . . . . . . . . . . Garrison Access . | . . . . . . . . . . . . . . . . . . . . . . . . . . . . . . . . . . . Data Cores Recovered 3 | . 1 . . . . . . . . . . . . . . . . . 1 . . . . . . . . . . . . 1 . . Used 1 | . 1 . . . . . . . . . . . . . . . . . . . . . . . . . . . . . . . . . Hacking Detections 64 | . 4 3 . . . 4 . 4 4 . 6 5 . . . . . 4 10 3 . 4 2 1 . . . 5 . . . 1 4 . Full Trace Events 7 | . 2 . . . . . . 1 . . . 1 . . . . . . 1 . . . . 1 . . . . . . . . 1 . Feedback Events . | . . . . . . . . . . . . . . . . . . . . . . . . . . . . . . . . . . . Feedback Blocked . | . . . . . . . . . . . . . . . . . . . . . . . . . . . . . . . . . . . Robot Schematics Acquired 1 | . . . . . . . . . . . 1 . . . . . . . . . . . . . . . . . . . . . . . Robots Built 6 | . . . . . . . . . . . 2 4 . . . . . . . . . . . . . . . . . . . . . . Matter 789 | . . . . . . . . . . . 219 570 . . . . . . . . . . . . . . . . . . . . . . Time 172 | . . . . . . . . . . . 58 114 . . . . . . . . . . . . . . . . . . . . . . Total Robot Build Rating 26 | . . . . . . . . . . . 6 20 . . . . . . . . . . . . . . . . . . . . . . Part Schematics Acquired 13 | . 1 . . . . . . 1 . . . 1 . . 5 . . . . . . . . 1 . 4 . . . . . . . . Parts Built 9 | . . . . . . . . . 4 . 3 1 . . . . . 1 . . . . . . . . . . . . . . . . Matter 972 | . . . . . . . . . 408 . 228 168 . . . . . 168 . . . . . . . . . . . . . . . . Time 375 | . . . . . . . . . 152 . 153 28 . . . . . 42 . . . . . . . . . . . . . . . . Total Part Build Rating 15 | . . . . . . . . . 4 . 3 4 . . . . . 4 . . . . . . . . . . . . . . . . Parts Repaired 8 | . . . . . . . . 4 1 . . . . . . . . . . . . . 2 . . . . 1 . . . . . . Time 323 | . . . . . . . . 146 38 . . . . . . . . . . . . . 70 . . . . 69 . . . . . . Parts Recycled . | . . . . . . . . . . . . . . . . . . . . . . . . . . . . . . . . . . . Recycled Matter . | . . . . . . . . . . . . . . . . . . . . . . . . . . . . . . . . . . . Retrieved Matter . | . . . . . . . . . . . . . . . . . . . . . . . . . . . . . . . . . . . Retrieved Components 20 | . . . . . . . . 9 . . . 2 . . . . . . 9 . . . . . . . . . . . . . . . Parts Scanalyzed 1 | . . . . . . . . 1 . . . . . . . . . . . . . . . . . . . . . . . . . . Part Schematics Acquired 1 | . . . . . . . . 1 . . . . . . . . . . . . . . . . . . . . . . . . . . Parts Damaged . | . . . . . . . . . . . . . . . . . . . . . . . . . . . . . . . . . . . Bothacking | -11 -10 -9 -9 -9 -8 -8 -8 -8 -7 -7 -7 -6 -6 -6 -6 -6 -5 -5 -5 -5 -5 -5 -4 -4 -4 -4 -3 -3 -3 -3 -2 -2 -1 -1 ------------ Run | Scr Mat Mat Min Exi Min Mat Gar Mat Fac Was Fac Fac Low Low Zio Dee Pro Fac Ext Cet Arc Hub Fac Upp Upp Zhi Pro Res Arm Lab Res Tes Acc Com Used RIF Installer . | . . . . . . . . . . . . . . . . . . . . . . . . . . . . . . . . . . . Robots Hacked . | . . . . . . . . . . . . . . . . . . . . . . . . . . . . . . . . . . . Non-combat . | . . . . . . . . . . . . . . . . . . . . . . . . . . . . . . . . . . . Combat . | . . . . . . . . . . . . . . . . . . . . . . . . . . . . . . . . . . . Robot Hacks Applied . | . . . . . . . . . . . . . . . . . . . . . . . . . . . . . . . . . . . Relay Couplers Released 10 | . . . . . . . . . 2 . . . . . . . . . . . . . . . . . . 7 . . . . 1 . Machine Destruction 7 | . . . . . . . . . 2 . . . . . . . . . . . . . . . . . . 4 . . . . 1 . Programmers 3 | . . . . . . . . . . . . . . . . . . . . . . . . . . . . 3 . . . . . . Robots Rewired 22 | . . . . 2 . . . . . . . . 4 . . . . . 16 . . . . . . . . . . . . . . . Allies Hacked 1 | . . . . . . . . . . . . . . . . . . . 1 . . . . . . . . . . . . . . . Hacks Repelled . | . . . . . . . . . . . . . . . . . . . . . . . . . . . . . . . . . . . Allies | -11 -10 -9 -9 -9 -8 -8 -8 -8 -7 -7 -7 -6 -6 -6 -6 -6 -5 -5 -5 -5 -5 -5 -4 -4 -4 -4 -3 -3 -3 -3 -2 -2 -1 -1 -------- Run | Scr Mat Mat Min Exi Min Mat Gar Mat Fac Was Fac Fac Low Low Zio Dee Pro Fac Ext Cet Arc Hub Fac Upp Upp Zhi Pro Res Arm Lab Res Tes Acc Com Total Allies 103 | . . . . 2 . . . . . 19 3 4 4 . 5 1 . . 24 5 3 . . . . . . . . 15 . . . 18 Largest Group 19 | . . . . 2 2 2 . . . 19 3 4 4 4 5 1 . . 18 18 7 4 . . . . . . . 15 13 12 12 12 Highest-Rated Group 3645 | . . . . 29 29 29 . . . 487 52 164 95 95 117 118 . . 642 651 726 369 . . . . . . . 3645 3159 2916 2916 2916 Highest-Rated Ally 243 | . . . . 21 21 21 . . . 35 21 41 41 25 31 118 . . 156 156 122 94 . . . . . . . 243 243 243 243 243 Total Orders 6 | . . . . . . . . . . . 2 . . . . . . . 2 2 . . . . . . . . . . . . . . STAY 3 | . . . . . . . . . . . 1 . . . . . . . 1 1 . . . . . . . . . . . . . . ROAM 3 | . . . . . . . . . . . 1 . . . . . . . 1 1 . . . . . . . . . . . . . . Ally Attacks 1147 | . . . . . 5 9 . . . 155 23 57 8 15 . 65 . . 127 148 28 42 . . . . . . . . 26 25 66 348 Total Damage 59974 | . . . . . 99 128 . . . 3657 357 1494 449 371 . 4424 . . 3168 4066 1052 1749 . . . . . . . . 1987 2354 5775 28844 Kills 258 | . . . . . 3 . . . . 10 4 11 1 3 . 22 . . 21 24 10 5 . . . . . . . . 11 12 20 101 Allies Corrupted 11 | . . . . . . . . . . . . . . . . . . . . . . . . . . . . . . . . . . 11 Allies Melted 2 | . . . . . . . . . . . . . . . . . . . 1 1 . . . . . . . . . . . . . . Turrets Deployed 3 | . . . . . . . . . . . . . . . . 3 . . . . . . . . . . . . . . . . . . Intel | -11 -10 -9 -9 -9 -8 -8 -8 -8 -7 -7 -7 -6 -6 -6 -6 -6 -5 -5 -5 -5 -5 -5 -4 -4 -4 -4 -3 -3 -3 -3 -2 -2 -1 -1 ------- Run | Scr Mat Mat Min Exi Min Mat Gar Mat Fac Was Fac Fac Low Low Zio Dee Pro Fac Ext Cet Arc Hub Fac Upp Upp Zhi Pro Res Arm Lab Res Tes Acc Com Robot Analysis Total 4 | . . . . . . . . . . . . . . . . . . . . . . . . . . 4 . . . . . . . . Derelict Logs Recovered 7 | . . . . . . . . . . . . . 1 1 . . 2 . . . . . . 2 1 . . . . . . . . . Drone Launches . | . . . . . . . . . . . . . . . . . . . . . . . . . . . . . . . . . . . Drone Recoveries . | . . . . . . . . . . . . . . . . . . . . . . . . . . . . . . . . . . . Exploration | -11 -10 -9 -9 -9 -8 -8 -8 -8 -7 -7 -7 -6 -6 -6 -6 -6 -5 -5 -5 -5 -5 -5 -4 -4 -4 -4 -3 -3 -3 -3 -2 -2 -1 -1 ------------- Run | Scr Mat Mat Min Exi Min Mat Gar Mat Fac Was Fac Fac Low Low Zio Dee Pro Fac Ext Cet Arc Hub Fac Upp Upp Zhi Pro Res Arm Lab Res Tes Acc Com Turns Passed 34575 | 61 635 630 375 488 305 1464 532 1240 719 1976 980 1220 841 1136 1741 5136 804 1877 1483 956 80 409 1317 902 595 303 595 1375 3 1879 445 362 445 1266 Spaces Moved 13623 | 46 349 329 184 325 202 620 231 464 401 459 479 595 480 704 906 1660 227 419 587 362 43 161 454 352 279 153 208 616 1 341 229 130 201 426 Core 31 | 5 . . . . . . . . . . . . . . . 26 . . . . . . . . . . . . . . . . . . Treads 1338 | . 8 53 140 29 . 507 156 80 . . . . . . 122 243 . . . . . . . . . . . . . . . . . . Legs 1667 | . . . . . . . . . . . . . . . . 1245 227 195 . . . . . . . . . . . . . . . . Wheels 10587 | 41 341 276 44 296 202 113 75 384 401 459 479 595 480 704 784 146 . 224 587 362 43 161 454 352 279 153 208 616 1 341 229 130 201 426 Hover . | . . . . . . . . . . . . . . . . . . . . . . . . . . . . . . . . . . . Flight . | . . . . . . . . . . . . . . . . . . . . . . . . . . . . . . . . . . . Fastest Speed 50 | 50 100 120 130 130 140 120 130 130 130 130 130 140 150 150 150 50 230 180 180 180 190 190 190 190 190 190 190 190 210 170 170 170 190 180 Average Speed 180 | 88 118 136 183 142 140 180 190 176 130 130 148 149 150 150 163 189 269 337 189 189 190 195 233 244 190 190 190 195 210 203 179 179 190 181 Slowest Speed 830 | 100 200 200 200 200 140 200 260 260 135 130 160 160 150 150 250 250 330 830 190 190 190 290 290 380 190 190 190 270 210 210 180 180 190 270 Overloaded Moves . | . . . . . . . . . . . . . . . . . . . . . . . . . . . . . . . . . . . Propulsion Burnouts . | . . . . . . . . . . . . . . . . . . . . . . . . . . . . . . . . . . . Robots Hopped 10 | . . . . . . . . . . . . . . . . 1 . . . . . . . . . . . . . 9 . . . . Cave-ins Triggered . | . . . . . . . . . . . . . . . . . . . . . . . . . . . . . . . . . . . Teleports 1 | . . . . . . . . . . . . . . . . . . . . . . . . . . . . . 1 . . . . . Exploration Rate (%) 42 | 4 42 30 41 62 71 42 58 29 12 94 9 18 58 55 81 86 31 11 77 79 67 30 15 55 50 62 45 26 1 98 8 17 9 27 Regions Visited 34 Branch Regions 20 Pre-discovered Areas 6 | . . . . 1 . . . . . . . . . . . . 1 . . . . . . 1 . 3 . . . . . . . . Known Exits Taken 23 | . . . . . . 1 . . . . 1 1 1 1 1 . 1 1 1 1 1 1 1 1 1 1 1 1 1 1 1 1 1 . Unknown Exits Taken 8 | 1 1 1 1 1 1 . . 1 . . . . . . . 1 . . . . . . . . . . . . . . . . . . Scrap Searched 13 | . . . 1 . 1 . . . . . . . 1 2 1 . 3 . . . . . . 1 3 . . . . . . . . . Spaces Dug 276 | . . . . . . 18 8 28 4 11 10 22 4 32 6 10 16 26 . . . 1 9 2 14 . 14 6 . 16 4 10 3 2 Terrain Destroyed 1169 | . . 4 45 . . 90 36 48 6 11 10 82 14 32 6 26 48 84 11 60 . 182 123 19 16 . 14 20 . 16 4 11 3 148 Melee 156 | . . . . . . . . 6 4 11 4 22 4 6 6 3 4 10 . . . 1 9 2 14 . 14 6 . 16 4 6 3 1 Projectile 77 | . . . . . . 13 . 8 . . . . . . . 12 . 6 11 . . 5 8 3 2 . . . . . . 5 . 4 AOE 936 | . . 4 45 . . 77 36 34 2 . 6 60 10 26 . 11 44 68 . 60 . 176 106 14 . . . 14 . . . . . 143 Actions | -11 -10 -9 -9 -9 -8 -8 -8 -8 -7 -7 -7 -6 -6 -6 -6 -6 -5 -5 -5 -5 -5 -5 -4 -4 -4 -4 -3 -3 -3 -3 -2 -2 -1 -1 --------- Run | Scr Mat Mat Min Exi Min Mat Gar Mat Fac Was Fac Fac Low Low Zio Dee Pro Fac Ext Cet Arc Hub Fac Upp Upp Zhi Pro Res Arm Lab Res Tes Acc Com Total 21775 | 58 523 433 207 353 220 854 286 805 583 1800 709 851 586 760 1062 3320 328 673 882 580 42 216 643 374 314 166 385 745 2 1463 255 243 254 800 Wait 5257 | . 129 10 2 2 8 44 1 223 144 1291 179 143 34 22 58 1208 1 50 58 125 . 17 96 . . 1 155 42 . 1049 2 73 30 60 Move 13575 | 45 348 328 183 324 201 620 228 463 401 458 478 594 479 703 905 1657 226 418 586 361 42 160 453 351 278 152 207 615 . 328 228 129 200 426 Hop 4 | . . . . . . . . . . . . . . . . 1 . . . . . . . . . . . . . 3 . . . . Pick Up 257 | 4 12 14 4 4 2 37 1 22 6 4 2 10 5 4 2 55 3 12 7 7 . 2 10 1 1 2 . 9 . 4 2 . 1 8 Fast Attach 151 | 6 1 5 . . . 8 . 4 1 . 1 4 1 . 2 40 3 11 4 12 . 1 6 2 . 5 . 8 . 7 5 3 3 8 Attach 107 | . 1 4 2 . . 13 1 2 2 . 1 9 1 . 3 11 5 10 1 1 . 2 4 1 . . . 5 1 5 3 2 1 16 Detach 102 | . . 3 . . . 4 . . . . 2 6 1 . 2 41 1 4 . 4 . . 4 1 . . . . . 5 7 7 2 8 Swap 277 | 1 3 7 1 3 2 25 16 16 7 1 11 16 4 8 14 16 15 11 9 12 . 5 10 6 5 . . 20 1 3 4 3 2 20 Drop 271 | . 3 11 3 4 4 29 1 21 5 4 2 8 5 4 3 46 3 8 11 18 . 1 2 . 1 6 . 14 . 22 . 7 1 24 Fire 969 | 2 26 51 11 . 3 68 19 46 11 1 22 37 12 10 36 122 59 87 44 32 . 26 32 10 7 . . 20 . 16 . 7 8 144 Melee 489 | . . . . . . 6 . 8 6 41 11 24 5 9 37 123 12 62 . 8 . 2 26 2 22 . 23 12 . 21 4 12 6 7 Ram 12 | . . . . . . . . . . . . . . . . . . . . . . . . . . . . . . . . . . 12 Kick . | . . . . . . . . . . . . . . . . . . . . . . . . . . . . . . . . . . . Crush . | . . . . . . . . . . . . . . . . . . . . . . . . . . . . . . . . . . . Escape Stasis 110 | . . . . . . . 19 . . . . . . . . . . . 24 . . . . . . . . . . . . . . 67 Rewire 194 | . . . 1 16 . . . . . . . . 39 . . . . . 138 . . . . . . . . . . . . . . . Trap . | . . . . . . . . . . . . . . . . . . . . . . . . . . . . . . . . . . . Miscellaneous . | . . . . . . . . . . . . . . . . . . . . . . . . . . . . . . . . . . . Route ------- -11/Scrapyard -10/Materials (discovered 2 exits: *Mat / [*Min]) -9/Materials (discovered 2 exits: *Mat / [*Min]) -9/Mines (discovered 2 exits: *Mat / *Exi) -9/Exiles (discovered 2 exits: [*Min x2]) -8/Mines -8/Materials (discovered 2 exits: *Fac / Gar) -8/Garrison (discovered 3 exits: *Mat x3) -8/Materials -7/Factory -7/Waste -7/Factory -6/Factory (discovered 2 exits: *Fac / *Low) -6/Lower Caves -6/Lower Caves (discovered 2 exits: *Fac / *Zio) -6/Zion (discovered 2 exits: *Dee / [*Pro]) -6/Deep Caves -5/Proximity Caves -5/Factory (discovered 5 exits: *Fac / *Upp x2 / *Ext x2) -5/Extension (discovered 2 exits: *Fac / *Cet) -5/Cetus (discovered 2 exits: *Fac / *Arc) -5/Archives -5/Hub_04(d) (discovered 2 exits: *Fac x2) -4/Factory (discovered 2 exits: *Upp x2) -4/Upper Caves -4/Upper Caves -4/Zhirov -3/Proximity Caves -3/Research (discovered 5 exits: *Res x2 / *Arm / Qua x2) -3/Armory -3/Lab -2/Research -2/Testing -1/Access -1/Command History --------- Turn | Location | Event 9 | -11/Scrapyard | Discovered new exit (range 15) 62 | -11/Scrapyard | Entered Materials 166 | -10/Materials | Discovered new exit (range 10) 312 | -10/Materials | Build established: Mutant 651 | -10/Materials | Discovered new exit (range 12) 697 | -10/Materials | Entered another Materials area 697 | -9/Materials | Evolved 2 slots: Utility x2 1015 | -9/Materials | Discovered new exit (range 10) 1126 | -9/Materials | Discovered new exit (range 15) 1327 | -9/Materials | Entered Mines 1334 | -9/Mines | Received a Rocket Launcher from a helpful Derelict 1381 | -9/Mines | Discovered new exit (range 9) 1694 | -9/Mines | Deemed a non-threat by the Exiles lab entrance 1694 | -9/Mines | Discovered new exit (range 5) 1702 | -9/Mines | Entered Exiles 1702 | -9/Exiles | Found Exiles lab destroyed 1734 | -9/Exiles | Discovered new exit (range 15) 1858 | -9/Exiles | Learned location of Zion (-6) 2035 | -9/Exiles | Opened EX-Vault 2040 | -9/Exiles | Found Deploy-a-Sentry 2046 | -9/Exiles | Found Deploy-a-Sentry 2049 | -9/Exiles | Found Deploy-a-Sentry 2170 | -9/Exiles | Discovered new exit (range 14) 2190 | -9/Exiles | Entered Mines 2190 | -8/Mines | Accompanied by 2 allies 2437 | -8/Mines | Discovered new exit (range 4) 2495 | -8/Mines | Entered Materials 2495 | -8/Materials | Accompanied by 2 allies 2495 | -8/Materials | Evolved 2 slots: Utility x2 2826 | -8/Materials | Build established: Hauler-Mutant 2831 | -8/Materials | Lost 3 parts (1u2w) 2919 | -8/Materials | Lost 5 parts (1p3u1w) 3175 | -8/Materials | Discovered new exit (range 5) 3959 | -8/Materials | Identified exit to Garrison 3959 | -8/Materials | Entered Garrison 4034 | -8/Garrison | Triggered checkpoint 4078 | -8/Garrison | Core integrity fell below 50% 4114 | -8/Garrison | Triggered checkpoint 4164 | -8/Garrison | Discovered new exit (range 8) 4176 | -8/Garrison | Attempted to access garrison exit controls, blocked by remote lockdown 4311 | -8/Garrison | Discovered new exit (range 8) 4325 | -8/Garrison | Attempted to access garrison exit controls, blocked by remote lockdown 4404 | -8/Garrison | Triggered checkpoint 4477 | -8/Garrison | Discovered new exit (range 8) 4491 | -8/Garrison | Entered Materials 4898 | -8/Materials | Repaired Lgt. Armor Plating? 4969 | -8/Materials | Repaired Med. Reactive Plating 5008 | -8/Materials | Repaired Imp. Grenade Launcher 5047 | -8/Materials | Repaired Shock Rifle 5321 | -8/Materials | Garrison activated, responded to threat 5348 | -8/Materials | Discovered new exit (range 16) 5731 | -8/Materials | Entered Factory 5731 | -7/Factory | Evolved 2 slots: Utility x2 6020 | -7/Factory | Fabricated Hcp. Storage Unit (x1) 6053 | -7/Factory | Fabricated Hcp. Storage Unit (x1) 6078 | -7/Factory | Fabricated Hcp. Storage Unit (x1) 6107 | -7/Factory | Fabricated Hcp. Storage Unit (x1) 6127 | -7/Factory | Local fabrication network quarantined 6251 | -7/Factory | Repaired Reflective Plating 6450 | -7/Factory | Sucked down chute 6450 | -7/Factory | Entered Waste 6565 | -7/Waste | Spotted C-40 Crusher 7820 | -7/Waste | Spotted C-40 Crusher 8006 | -7/Waste | Spotted C-40 Crusher 8032 | -7/Waste | Warlord forces began an assault 8041 | -7/Waste | Allies destroyed C-40 Crusher 8047 | -7/Waste | Allies destroyed C-40 Crusher 8124 | -7/Waste | Spotted C-40 Crusher 8124 | -7/Waste | Allies destroyed C-40 Crusher 8244 | -7/Waste | Discovered new exit (range 12) 8283 | -7/Waste | Identified exit to Factory 8426 | -7/Waste | Entered Factory 8565 | -7/Factory | Fabricated Hcp. Storage Unit (x1) 8623 | -7/Factory | Fabricated Hcp. Storage Unit (x1) 8674 | -7/Factory | Fabricated Hcp. Storage Unit (x1) 8831 | -7/Factory | Discovered new exit (range 6) 8839 | -7/Factory | Identified exit to Factory 9073 | -7/Factory | Fabricated H-55 Commando (x2) 9406 | -7/Factory | Entered another Factory area 9406 | -6/Factory | Accompanied by 2 allies 9406 | -6/Factory | Evolved 2 slots: Utility x2 10009 | -6/Factory | Fabricated Lrn. Sensor Array (x1) 10120 | -6/Factory | Fabricated H-66 Slayer (x2) 10158 | -6/Factory | Fabricated H-66 Slayer (x2) 10333 | -6/Factory | Discovered new exit (range 5) 10398 | -6/Factory | Local fabrication network quarantined 10456 | -6/Factory | First assault squad dispatched 10620 | -6/Factory | Discovered new exit (range 3) 10623 | -6/Factory | Identified exit to Lower Caves 10626 | -6/Factory | Entered Lower Caves 10626 | -6/Lower Caves | Accompanied by 2 allies 10689 | -6/Lower Caves | Spotted B-75 Beast 10693 | -6/Lower Caves | Allies destroyed B-75 Beast 10758 | -6/Lower Caves | Learned location of 1 exit from Factory 11452 | -6/Lower Caves | Discovered new exit (range 5) 11458 | -6/Lower Caves | Identified exit to Lower Caves 11467 | -6/Lower Caves | Entered another Lower Caves area 11467 | -6/Lower Caves | Accompanied by 4 allies 11485 | -6/Lower Caves | Discovered new exit (range 3) 11487 | -6/Lower Caves | Identified exit to Factory 11964 | -6/Lower Caves | Learned Factory stockpile data 12109 | -6/Lower Caves | Ambushed by wild Derelicts 12551 | -6/Lower Caves | Found Alien Artifact 12576 | -6/Lower Caves | Discovered new exit (range 15) 12597 | -6/Lower Caves | Identified exit to Zion 12603 | -6/Lower Caves | Entered Zion 12603 | -6/Zion | Accompanied by 1 ally 12684 | -6/Zion | Discovered new exit (range 10) 13730 | -6/Zion | Gained Derelict followers 13840 | -6/Zion | Destroyed Imprinter 13841 | -6/Zion | Attacked by Zionites 13857 | -6/Zion | Extracted access codes from Imprinter's data core 14296 | -6/Zion | Opened final containment barrier to the Deep Caves 14337 | -6/Zion | Discovered new exit (range 3) 14337 | -6/Zion | Saw the warning signs outside the Deep Caves entrance 14342 | -6/Zion | Identified exit to Deep Caves 14344 | -6/Zion | Entered Deep Caves 14347 | -6/Deep Caves | Met 5H-AD0 14492 | -6/Deep Caves | Z-Facility disabled 14616 | -6/Deep Caves | Found Prototype Protection 14616 | -6/Deep Caves | Identified Zio. Weapon Casing 14873 | -6/Deep Caves | DAS Turret deployed 14878 | -6/Deep Caves | DAS Turret deployed 14881 | -6/Deep Caves | DAS Turret deployed 14910 | -6/Deep Caves | Spotted as-35678 14915 | -6/Deep Caves | Destroyed as-35678 15040 | -6/Deep Caves | Triggered Deep Caves wall 15104 | -6/Deep Caves | Destroyed 23 combat bots 15108 | -6/Deep Caves | Lost 5 parts (1n4u) 15108 | -6/Deep Caves | Spotted AS-39925 15108 | -6/Deep Caves | Spotted AS-80754 15147 | -6/Deep Caves | Destroyed AS-80754 15149 | -6/Deep Caves | Lost 3 parts (1n2u) 15158 | -6/Deep Caves | Exposed GOLEM chamber 15168 | -6/Deep Caves | Destroyed AS-39925 15181 | -6/Deep Caves | Triggered Deep Caves wall 15483 | -6/Deep Caves | Found GOLEM Unit 15688 | -6/Deep Caves | Build established: Mutant 16118 | -6/Deep Caves | Spotted as-87974 16248 | -6/Deep Caves | Destroyed as-87974 16266 | -6/Deep Caves | Lost 4 parts (3u1w) 16438 | -6/Deep Caves | Core integrity fell below 50% 16515 | -6/Deep Caves | Build established: Golem 16847 | -6/Deep Caves | Found Prototype Protection 16847 | -6/Deep Caves | Identified Zio. Heavy Carapace 16973 | -6/Deep Caves | Found Zio. Heavy Carapace 16995 | -6/Deep Caves | Found Zio. Heavy Carapace 17151 | -6/Deep Caves | Build established: Mutant 17825 | -6/Deep Caves | Found GOLEM Unit 17829 | -6/Deep Caves | Found GOLEM Unit 17834 | -6/Deep Caves | Found GOLEM Unit 17925 | -6/Deep Caves | Found GOLEM Unit 17931 | -6/Deep Caves | Found GOLEM Unit 17936 | -6/Deep Caves | Found GOLEM Unit 17990 | -6/Deep Caves | Found GOLEM Unit 17996 | -6/Deep Caves | Found GOLEM Unit 18015 | -6/Deep Caves | Build established: Hauler-Mutant 18034 | -6/Deep Caves | Found GOLEM Unit 18039 | -6/Deep Caves | Found GOLEM Unit 18106 | -6/Deep Caves | Found Prototype Energy Cannon 18106 | -6/Deep Caves | Identified Latent Energy Streamer 18239 | -6/Deep Caves | Found GOLEM Unit 18245 | -6/Deep Caves | Found GOLEM Unit 18250 | -6/Deep Caves | Found GOLEM Unit 18255 | -6/Deep Caves | Found GOLEM Unit 18261 | -6/Deep Caves | Found GOLEM Unit 18326 | -6/Deep Caves | Found GOLEM Unit 18378 | -6/Deep Caves | Found GOLEM Unit 18383 | -6/Deep Caves | Found GOLEM Unit 18398 | -6/Deep Caves | Found GOLEM Unit 18433 | -6/Deep Caves | Found GOLEM Unit 18438 | -6/Deep Caves | Found GOLEM Unit 18444 | -6/Deep Caves | Found GOLEM Unit 18764 | -6/Deep Caves | Found Prototype Device 18764 | -6/Deep Caves | Identified Exp. ECM Suite 18949 | -6/Deep Caves | Found Zio. Weapon Casing 19043 | -6/Deep Caves | Found Zio. Weapon Casing 19060 | -6/Deep Caves | Found Zio. Weapon Casing 19066 | -6/Deep Caves | Found Zio. Weapon Casing 19155 | -6/Deep Caves | Found Zio. Weapon Casing 19448 | -6/Deep Caves | Discovered new exit (range 10) 19480 | -6/Deep Caves | Entered Proximity Caves 19524 | -5/Proximity Caves | Attracted the attention of an 0b10 checkpoint 19606 | -5/Proximity Caves | Learned location of Armory (-3) 19911 | -5/Proximity Caves | Learned location of 1 exit from Factory 19912 | -5/Proximity Caves | Attracted the attention of an 0b10 outpost 19959 | -5/Proximity Caves | Core integrity fell below 20% 19993 | -5/Proximity Caves | Lost 4 parts (2p1n1u) 19995 | -5/Proximity Caves | Destroyed 14 combat bots 20130 | -5/Proximity Caves | Discovered exit to Factory (range 7) 20284 | -5/Proximity Caves | Entered Factory 20284 | -5/Factory | Evolved 2 slots: Utility x2 20285 | -5/Factory | Identified exit to Upper Caves 20285 | -5/Factory | Identified exit to Factory 20781 | -5/Factory | Identified exit to Extension 20885 | -5/Factory | Fabricated Lrn. Sensor Array (x1) 21012 | -5/Factory | Lost 3 parts (1p1n1w) 21276 | -5/Factory | System corruption reached 10% 21283 | -5/Factory | Local fabrication network quarantined 21313 | -5/Factory | Garrison activated, responded to threat 22084 | -5/Factory | First assault squad dispatched 22161 | -5/Factory | Entered Extension 22261 | -5/Extension | Core integrity fell below 50% 22286 | -5/Extension | Rescued a captive Derelict 22287 | -5/Extension | Rescued a captive Derelict 22574 | -5/Extension | Rescued A7 22977 | -5/Extension | Spotted B-75 Beast 22986 | -5/Extension | Allies destroyed B-75 Beast 22991 | -5/Extension | Spotted B-75 Beast 22992 | -5/Extension | Allies destroyed B-75 Beast 23361 | -5/Extension | Rescued a captive Derelict 23468 | -5/Extension | Rescued a captive Derelict 23474 | -5/Extension | Rescued a captive Derelict 23497 | -5/Extension | Rescued a captive Derelict 23499 | -5/Extension | Rescued a captive Derelict 23601 | -5/Extension | Discovered exit to Factory (range 10) 23603 | -5/Extension | Discovered new exit (range 6) 23618 | -5/Extension | Identified exit to Cetus 23644 | -5/Extension | Entered Cetus 23644 | -5/Cetus | Accompanied by 18 allies 23649 | -5/Cetus | Acquired a Cetus Manufacturing Module code from A7 23671 | -5/Cetus | Spotted Cetus Guard 23671 | -5/Cetus | Spotted Cetus Guard 23673 | -5/Cetus | Spotted Cetus Guard 23675 | -5/Cetus | Spotted Cetus Guard 23680 | -5/Cetus | Allies destroyed Cetus Guard 23685 | -5/Cetus | Allies destroyed Cetus Guard 23688 | -5/Cetus | Allies destroyed Cetus Guard 23693 | -5/Cetus | Allies destroyed Cetus Guard 23828 | -5/Cetus | Escorted A7 to Cetus Mainframe 23964 | -5/Cetus | Discovered new exit (range 15) 23998 | -5/Cetus | Spotted Cetus Guard 23999 | -5/Cetus | Spotted Cetus Guard 24002 | -5/Cetus | Spotted Cetus Guard 24007 | -5/Cetus | Allies destroyed Cetus Guard 24008 | -5/Cetus | Spotted Cetus Guard 24011 | -5/Cetus | Allies destroyed Cetus Guard 24026 | -5/Cetus | Destroyed Cetus Guard 24030 | -5/Cetus | Destroyed Cetus Guard 24040 | -5/Cetus | Discovered exit to Factory (range 16) 24054 | -5/Cetus | Met Revision 17 24247 | -5/Cetus | Started Cetus Manufacturing Module 24272 | -5/Cetus | Manufactured an Enhanced Grunt 24297 | -5/Cetus | Manufactured an Enhanced Grunt 24322 | -5/Cetus | Manufactured an Enhanced Grunt 24347 | -5/Cetus | Manufactured an Enhanced Grunt 24372 | -5/Cetus | Manufactured an Enhanced Grunt 24498 | -5/Cetus | Destroyed A7 24500 | -5/Cetus | Extracted ID and sensor layout for unrecognized location from A7's data core 24507 | -5/Cetus | Found Prototype Protection 24507 | -5/Cetus | Identified Med. Regenerative Plating 24593 | -5/Cetus | Identified exit to Archives 24600 | -5/Cetus | Entered Archives 24600 | -5/Archives | Accompanied by 4 allies 24623 | -5/Archives | Met Zhirov 24629 | -5/Archives | Reinforcements dispatched to Archives 24644 | -5/Archives | Read partially decrypted archive contents 24652 | -5/Archives | Discovered new exit (range 13) 24673 | -5/Archives | Identified exit to Hub_04(d) 24674 | -5/Archives | Reinforcements dispatched to Archives 24680 | -5/Archives | Entered Hub_04(d) 24680 | -5/Hub_04(d) | Accompanied by 4 allies 24885 | -5/Hub_04(d) | Discovered exit to Factory (range 11) 24917 | -5/Hub_04(d) | Discovered exit to Factory (range 20) 25004 | -5/Hub_04(d) | Lost 3 parts (1n1u1w) 25061 | -5/Hub_04(d) | Network Hub disabled 25084 | -5/Hub_04(d) | Spotted Lightning 25086 | -5/Hub_04(d) | Spotted Lightning 25089 | -5/Hub_04(d) | Spotted Lightning 25089 | -5/Hub_04(d) | Entered Factory 25089 | -4/Factory | Evolved 2 slots: Utility x2 25150 | -4/Factory | Repaired Hcp. Storage Unit 25196 | -4/Factory | Repaired Imp. Medium Armor Plating 26153 | -4/Factory | Identified exit to Upper Caves 26389 | -4/Factory | First assault squad dispatched 26406 | -4/Factory | Entered Upper Caves 26644 | -4/Upper Caves | Learned 4 Research zone layouts 27099 | -4/Upper Caves | Discovered new exit (range 5) 27110 | -4/Upper Caves | Identified exit to Upper Caves 27199 | -4/Upper Caves | Learned location of Testing (-2) 27308 | -4/Upper Caves | Entered another Upper Caves area 27337 | -4/Upper Caves | Learned location of 1 exit from Research 27815 | -4/Upper Caves | Attracted the attention of an 0b10 checkpoint 27839 | -4/Upper Caves | Discovered new exit (range 10) 27872 | -4/Upper Caves | Identified exit to Zhirov 27903 | -4/Upper Caves | Entered Zhirov 27903 | -4/Zhirov | Discovered new exit (range 4) 27979 | -4/Zhirov | Learned location of Quarantine (-3) 27979 | -4/Zhirov | Learned location of Command (-1) 28050 | -4/Zhirov | Found Alien Artifact 28050 | -4/Zhirov | Identified Integrated Dissipator 28050 | -4/Zhirov | Installed Integrated Dissipator, increased core heat dissipation (+20) 28077 | -4/Zhirov | Found Alien Artifact 28203 | -4/Zhirov | Identified exit to Proximity Caves 28206 | -4/Zhirov | Entered Proximity Caves 28780 | -3/Proximity Caves | Discovered new exit (range 10) 28795 | -3/Proximity Caves | Identified exit to Research 28801 | -3/Proximity Caves | Entered Research 28801 | -3/Research | Evolved 2 slots: Utility x2 28802 | -3/Research | Identified exit to Research 28986 | -3/Research | Identified exit to Armory 28986 | -3/Research | Identified exit to Quarantine 29001 | -3/Research | Revision forces began assault on 0b10 29045 | -3/Research | Met up with Revision 17++ 29100 | -3/Research | Discovered exit to Research (range 10) 29198 | -3/Research | Repaired Broken Lrn. Sensor Array 29272 | -3/Research | Found Unknown Piercing Weapon 29272 | -3/Research | Identified Enh. Force Lance 29501 | -3/Research | Research terminal network offline 29634 | -3/Research | Spotted Striker 29711 | -3/Research | Spotted Striker 29711 | -3/Research | Spotted Executioner 29712 | -3/Research | Spotted Striker 29736 | -3/Research | Destroyed Striker 29739 | -3/Research | Destroyed Striker 29743 | -3/Research | Destroyed Executioner 29766 | -3/Research | Lost 6 parts (1p2n3u) 29773 | -3/Research | Destroyed 12 combat bots 30176 | -3/Research | Entered Armory 30176 | -3/Armory | Identified Transdimensional Reconstructor 30176 | -3/Armory | Warped through subspace to slip node 30176 | -3/Armory | Discovered new exit (range 1) 30176 | -3/Armory | Identified exit to Lab 30179 | -3/Armory | Entered Lab 30179 | -3/Lab | Discovered exit to Research (range 9) 30203 | -3/Lab | Hidden lab's door opened automatically 30203 | -3/Lab | Sensor layout match revealed 30204 | -3/Lab | Gained access to the hidden lab's interior 30205 | -3/Lab | Unable to decrypt terminal 30266 | -3/Lab | Found Alien Artifact 30266 | -3/Lab | Identified Core Expander 30266 | -3/Lab | Installed Core Expander, added new Power slot 30282 | -3/Lab | Found Integrated Dissipator 30282 | -3/Lab | Installed Integrated Dissipator, increased core heat dissipation (+20) 30374 | -3/Lab | Found Prototype Energy Gun 30374 | -3/Lab | Identified Hyp. EM Gauss Rifle 30381 | -3/Lab | Found Prototype Energy Cannon 30381 | -3/Lab | Identified Warp Cannon 30388 | -3/Lab | Found Med. Regenerative Plating 30615 | -3/Lab | Found Transdimensional Reconstructor 30757 | -3/Lab | Found Alien Artifact 30757 | -3/Lab | Identified Core Reset Matrix 30757 | -3/Lab | Identified Dimensional Node Initializer 30757 | -3/Lab | Used Core Reset Matrix 30775 | -3/Lab | Discovered exit to Research (range 6) 31819 | -3/Lab | Destroyed as-52664 31968 | -3/Lab | Destroyed as-53910 32058 | -3/Lab | Entered Research 32058 | -2/Research | Accompanied by 13 allies 32058 | -2/Research | Evolved 2 slots: Utility x2 32084 | -2/Research | Found Prototype Launcher 32085 | -2/Research | Identified Adv. Micro-nuke Launcher 32185 | -2/Research | Found Unknown Device 32185 | -2/Research | Identified Quantum Capacitor 32393 | -2/Research | Discovered new exit (range 16) 32464 | -2/Research | Garrison activated, responded to threat 32488 | -2/Research | Identified exit to Testing 32503 | -2/Research | Entered Testing 32503 | -2/Testing | Accompanied by 12 allies 32563 | -2/Testing | Found Prototype Protection 32563 | -2/Testing | Identified SHELL Armor 32571 | -2/Testing | Found Prototype Protection 32571 | -2/Testing | Identified Hvy. Regenerative Plating 32662 | -2/Testing | Discovered new exit (range 16) 32780 | -2/Testing | Identified exit to Access 32865 | -2/Testing | Entered Access 32865 | -1/Access | Accompanied by 12 allies 32865 | -1/Access | Evolved 2 slots: Utility x2 33115 | -1/Access | First assault squad dispatched 33269 | -1/Access | Discovered new exit (range 8) 33281 | -1/Access | Identified exit to Command 33310 | -1/Access | Entered Command 33310 | -1/Command | Accompanied by 12 allies 33372 | -1/Command | Build established: Hauler-Assassin 33495 | -1/Command | High security lockdown imminent 33533 | -1/Command | Spotted B-99 Colossus 33565 | -1/Command | Allies destroyed B-99 Colossus 33575 | -1/Command | High security lockdown engaged 33606 | -1/Command | Phase Generator disabled 33655 | -1/Command | Spotted Executioner 33665 | -1/Command | Allies destroyed Executioner 33755 | -1/Command | Spotted Executioner 33755 | -1/Command | Spotted Striker 33756 | -1/Command | Spotted Investigator 33758 | -1/Command | Destroyed Investigator 33760 | -1/Command | Allies destroyed Striker 33763 | -1/Command | Allies destroyed Executioner 33922 | -1/Command | Spotted Striker 33922 | -1/Command | Spotted Striker 33935 | -1/Command | Allies destroyed Striker 33938 | -1/Command | Allies destroyed Striker 34023 | -1/Command | Spotted M Guard 34023 | -1/Command | Spotted M Guard 34025 | -1/Command | Spotted Combat Programmer 34026 | -1/Command | Spotted Combat Programmer 34049 | -1/Command | Destroyed M Guard 34058 | -1/Command | Destroyed M Guard 34060 | -1/Command | Allies destroyed Combat Programmer 34062 | -1/Command | Allies destroyed Combat Programmer 34062 | -1/Command | Destroyed all MAIN.C guards 34070 | -1/Command | Found Prototype Reactor 34070 | -1/Command | Identified Zero-point Reactor 34076 | -1/Command | Found Zero-point Reactor 34080 | -1/Command | Found Zero-point Reactor 34084 | -1/Command | Found Zero-point Reactor 34087 | -1/Command | Found Prototype Device 34087 | -1/Command | Identified AEGIS Remote Shield 34092 | -1/Command | Found Hvy. Regenerative Plating 34101 | -1/Command | Found Prototype Energy Cannon 34103 | -1/Command | Spotted Investigator 34105 | -1/Command | Scanned by Researcher 34108 | -1/Command | Allies destroyed Investigator 34108 | -1/Command | Spotted Executioner 34110 | -1/Command | Destroyed Executioner 34119 | -1/Command | Spotted Striker 34134 | -1/Command | Spotted Striker 34134 | -1/Command | Spotted Striker 34134 | -1/Command | Spotted Executioner 34135 | -1/Command | Destroyed Striker 34140 | -1/Command | Allies destroyed Striker 34144 | -1/Command | Allies destroyed Executioner 34162 | -1/Command | Destroyed 17 combat bots 34334 | -1/Command | Met MAIN.C 34348 | -1/Command | System corruption reached 10% 34357 | -1/Command | 0b10 Conduit disabled 34375 | -1/Command | Destroyed MAIN.C Shell 34376 | -1/Command | MAIN.C activated Command garrisons 34380 | -1/Command | Spotted Striker 34415 | -1/Command | Spotted Executioner 34415 | -1/Command | Spotted Striker 34419 | -1/Command | Spotted Striker 34419 | -1/Command | Spotted Investigator 34492 | -1/Command | Spotted Executioner 34528 | -1/Command | Released all parts (17) 34545 | -1/Command | Identified Cld. Nova Cannon 34547 | -1/Command | Spotted Striker 34561 | -1/Command | System corruption reached 30% 34562 | -1/Command | Core integrity fell below 50% 34565 | -1/Command | Emitted hypermatrix ping 34570 | -1/Command | Assembled emerged from beneath the floor 34570 | -1/Command | Core integrity fell below 20% 34576 | -1/Command | Destroyed by P-80 Master with Gamma Rifle Last Messages --------------- 34570_ K-01 Serf collects debris. 34571_ as-15105 destroyed. 34571_ as-67709 suffers critical hit. 34571_ as-67709 destroyed. 34571_ Acquired KE Penetrator. 34571_ K-01 Serf collects debris. 34571_ P-80 Master resets P-80 Master, system corruption cleaned. 34572_ K-01 Serf collects debris. 34572_ Slammed into G-73 Enforcer. 34572_ P-80 Master resets P-80 Master, system corruption cleaned. 34573_ as-51262 suffers critical hit. 34573_ Slammed into G-73 Enforcer. 34573_ Destabilizing: Core damaged (-48). 34573_ K-01 Serf destroyed. 34574_ GOLEM Unit springs to life. 34574_ K-01 Serf cleans the Heavy Barrier. 34574_ Slammed into G-73 Enforcer. 34574_ K-01 Serf collects debris. 34575_ Slammed into G-73 Enforcer. 34576_ K-01 Serf collects debris. Map ----- +----------------------------------------------------+ | ?????????????????????????????????????????????????? | | ?????????????????????????????????????????????????? | | ?????????????????????????????????????????????????? | | ?????????????????????????????????????????????????? | | ?????????????????????????????????????????????????? | | ?????????????????????????????????????????????????? | | ?????????????????????????????????????????????????? | | ?????????????????????????????????????????????????? | | ??????????????????????????????????????############ | | ?????????????????????????????????????""" """" | | ??????????????????????????????????" "" | | ????????????????????????????????#""""" "" | | ????????????????????????????????#""""""""""" | | ????????????????????????????????#" " """ | | ????????????????????????????????#"" """""" = | | ???????????? ???????????????????#"" """""" % | | ???????????? ????????????????# " """" " | | ?????????????? ?#?????????????# " " | | ??????????????? # ????????????# " "!!% | | ???????????????? # ????????????#""""""""%!%! " | | ????????????????? + ???????????#""%" "%[*""""" | | ??????????????????# ???????#####%" %"""""" | | ??????????????????# ??????# #==!= ! " " " | | ?????????######+### ########k##%! " " " | | ???????? G kKg*ip[k""" " " " """ | | ???????? kpkipp@gpp%"?" """ " " " | | ???????? i k%*gggbp%i="?" " " " | | ????????!! ####/###Kpp###?# """""""""" | | ??????????? ???????# !=p###???# " """ " """" | | ???????????????????# ![]p!#?????# """ " " | | ???????????????????+ ![]p#?????#################? | | ???????????????????# [!!|#??????????????????????? | | ???????????????????# %[!#??????????????????????? | | ???????????????????# #??????????????????????? | | ?????????????????? "####+##??????????????????????? | | ????????????????? #???# ????????????????????????? | | ???????????????? ????# ????????????????????????? | | ???????????????###?????# ????????????????????????? | | ???????????????????????# ????????????????????????? | | ??????????????????????? ????????????????????????? | | ???????????????????????##????????????????????????? | | ?????????????????????????????????????????????????? | | ?????????????????????????????????????????????????? | | ?????????????????????????????????????????????????? | | ?????????????????????????????????????????????????? | | ?????????????????????????????????????????????????? | | ?????????????????????????????????????????????????? | | ?????????????????????????????????????????????????? | | ?????????????????????????????????????????????????? | | ?????????????????????????????????????????????????? | +----------------------------------------------------+ Best States ------------- Heat Dissipation 137 Energy Generation 65 Energy Capacity 2380 Matter Stores 300 Matter Capacity 600 Sight Range 20 Robot Scan Range 20 Terrain Scan Density 10 Additional Mass Support 10 Armor Coverage 2800 Resistance: KI 30 Resistance: TH 15 Resistance: EX 15 Resistance: EM 15 Resistance: I 15 Resistance: S 15 Resistance: P 15 Utility Shielding 90 Weapon Shielding 100 Phase Shifting 8 Evasion (%) 50 Targeting Accuracy 8 Target Analysis 8 Core Analysis 8 Armor Integrity Analysis 50 Recoil Reduction 2 Particle Charging 15 Offensive Hacking 12 Defensive Hacking 22 Item Schematics ----------------- None Robot Schematics ------------------ None Fabricated ------------ Hcp. Storage Unit | x1 | -7/Factory Hcp. Storage Unit | x1 | -7/Factory Hcp. Storage Unit | x1 | -7/Factory Hcp. Storage Unit | x1 | -7/Factory Hcp. Storage Unit | x1 | -7/Factory Hcp. Storage Unit | x1 | -7/Factory Hcp. Storage Unit | x1 | -7/Factory H-55 Commando | x2 | -7/Factory Lrn. Sensor Array | x1 | -6/Factory H-66 Slayer | x2 | -6/Factory | Preloaded H-66 Slayer | x2 | -6/Factory | Preloaded Lrn. Sensor Array | x1 | -5/Factory Alien Tech Used ----------------- Integrated Dissipator Transdimensional Reconstructor Core Expander Core Reset Matrix Achievements -------------- Alien Roots Anyone Home? Challenges ------------ None Game ------ Seed DerelictCannonKatana Manual? 0 Play Time 06:04:07 Cumulative 268.3 hours Start 2020.06.25 @ 10:05:42 End 2020.06.26 @ 18:59:52 Sessions 3 Manual Loads 0 Difficulty Rogue Special Mode None Game No. 198 Rogue 198 Adventurer 0 Explorer 0 Win Type - Total 5 Types 5/0/0/0/0/0/0 Lore% 74 Gallery% 86 Achievement% 68 Wizard Run 0 Options --------- ASCII 0 Keyboard 1 Movement Numpad Keybinds 0 Fullscreen 2 Font 18/SmallcapsGlow Map View 76x50 Tactical HUD 1 Map Filters NONE Filters NONE Steam X RUN: c77d6c41-29de-4720-afbd-3f076032f447